Workbook

Sheet 1
B1: Номер техно-логи-ческой карты | C1: Наименование блюда | D1: Выход блюд | F1: Пищевые вещества | N1: Витамины (мг) | R1: Минеральные вещества (мг)
C2: 1 день2 | D2: 7–11 лет | E2: 12–16 лет | F2: Белки | H2: Жиры | J2: Углеводы | L2: ККАЛ | N2: В1 | O2: С | P2: А | Q2: Е | R2: Са | S2: Р | T2: Мg | U2: Fe
F3: 7–11 лет | G3: 12-16 лет | H3: 7–11 лет | I3: 12-16 лет | J3: 7–11 лет | K3: 12-16 лет | L3: 7–11 лет | M3: 12-16 лет
B5: ЗАВТРАК
B6: 168 | C6: Каша рисовая | D6: 200 | E6: 250 | F6: 10.24 | G6: 12.8 | H6: 13.24 | I6: 16.55 | J6: 65.22 | K6: 81.53 | L6: 420.3 | M6: 525.4 | N6: 0.1 | O6: 2.6 | P6: 0.16 | Q6: 3 | R6: 241.76 | S6: 232.06 | T6: 45.08 | U6: 0.51
B7: 943 | C7: Чай с сахаром | D7: 200 | E7: 200 | F7: 1.4 | G7: 1.4 | H7: 0 | I7: 0 | J7: 14 | K7: 14 | L7: 28 | M7: 28 | N7: 0 | O7: 0 | P7: 0 | Q7: 0 | R7: 6 | S7: 0 | T7: 0 | U7: 0.4 | V7: 0.53
C8: Масло сливочное | D8: 10 | E8: 10 | F8: 0.1 | G8: 0.1 | H8: 7.2 | I8: 7.2 | J8: 0.1 | K8: 0.1 | L8: 66 | M8: 66 | N8: 0 | O8: 0 | P8: 0.1 | Q8: 0.1 | R8: 1.2 | S8: 1.9 | T8: 0.04 | U8: 0.02
C9: Хлеб пш., рж. | D9: 30 | E9: 50 | F9: 2.28 | G9: 3.8 | H9: 70.5 | I9: 117.5 | J9: 0.24 | K9: 0.4 | L9: 14.76 | M9: 24.6 | N9: 0.11 | O9: 0 | P9: 0 | Q9: 1.1 | R9: 20 | S9: 65 | T9: 14 | U9: 1.1
B10: ИТОГО | F10: 17.71 | G10: 22.59 | H10: 93.02 | I10: 144.22 | J10: 91.52 | K10: 107.99 | L10: 644.05 | M10: 769.91 | N10: 0.25 | O10: 3.09 | P10: 0.27 | Q10: 4.37 | R10: 600.43 | S10: 623.28 | T10: 98.92 | U10: 2.9
B11: ОБЕД
B12: 45 | C12: Винегрет овощной | D12: 100 | E12: 150 | F12: 1.26 | G12: 1.89 | H12: 10.14 | I12: 15.21 | J12: 8.32 | K12: 12.48 | L12: 129.26 | M12: 193.89 | N12: 0.04 | O12: 5.34 | P12: 0.2 | Q12: 4.45 | R12: 21.4 | S12: 39.91 | T12: 18.03 | U12: 0.75
B13: 206 | C13: Суп гороховый | D13: 250 | E13: 300 | F13: 2.34 | G13: 2.81 | H13: 3.89 | I13: 4.67 | J13: 13.61 | K13: 16.33 | L13: 98.79 | M13: 118.5 | N13: 0.1 | O13: 8.41 | P13: 0.24 | Q13: 0.21 | R13: 18.43 | S13: 59.12 | T13: 22.52 | U13: 0.8
B14: 247 | C14: Кисель (вит.С) | D14: 200 | E14: 200 | F14: 1.36 | G14: 1.36 | H14: 0 | I14: 0 | J14: 29.02 | K14: 29.02 | L14: 116.19 | M14: 116.19 | N14: 0 | O14: 0 | P14: 0 | Q14: 0 | R14: 0.68 | S14: 0 | T14: 0 | U14: 0.1
C15: Хлеб пш., рж. | D15: 30 | E15: 50 | F15: 2.28 | G15: 3.8 | H15: 70.5 | I15: 117.5 | J15: 0.24 | K15: 0.4 | L15: 14.76 | M15: 24.6 | N15: 0.11 | O15: 0 | P15: 0 | Q15: 1.1 | R15: 20 | S15: 65 | T15: 14 | U15: 1.1
B16: ИТОГО | F16: 26.18 | G16: 36.06 | H16: 31.48 | I16: 43.53 | J16: 96.63 | K16: 139.67 | L16: 608.02 | M16: 813.46 | N16: 0.58 | O16: 39.58 | P16: 1.61 | Q16: 7.16 | R16: 167.12 | S16: 399.15 | T16: 160.74 | U16: 10.09
B17: ИТОГО ВСЕГО | F17: 43.89 | G17: 58.65 | H17: 124.5 | I17: 187.75 | J17: 188.15 | K17: 247.66 | L17: 1252.07 | M17: 1583.37 | N17: 0.83 | O17: 42.67 | P17: 1.88 | Q17: 11.53 | R17: 767.55 | S17: 1022.43 | T17: 259.66 | U17: 12.99
B19: Номер техно-логи-ческой карты | C19: Наименование блюда | D19: Выход блюд | F19: Пищевые вещества | N19: Витамины (мг) | R19: Минеральные вещества (мг)
C20: 2 день5 | D20: 7–11 лет | E20: 12–16 лет | F20: Белки | H20: Жиры | J20: Углеводы | L20: ККАЛ | N20: В1 | O20: С | P20: А | Q20: Е | R20: Са | S20: Р | T20: Мg | U20: Fe
F21: 7–11 лет | G21: 12-16 лет | H21: 7–11 лет | I21: 12-16 лет | J21: 7–11 лет | K21: 12-16 лет | L21: 7–11 лет | M21: 12-16 лет
B23: ЗАВТРАК
B24: 679 | C24: Каша ячневая | D24: 150 | E24: 180 | F24: 4.79 | G24: 5.74 | H24: 4.26 | I24: 5.11 | J24: 30.83 | K24: 36.99 | L24: 187.02 | M24: 224.42 | N24: 0.09 | O24: 0 | P24: 0.02 | Q24: 0.05 | R24: 39.14 | S24: 168 | T24: 0.02 | U24: 0.83
C25: Масло сливочное | D25: 10 | E25: 10 | F25: 0.1 | G25: 0.1 | H25: 7.2 | I25: 7.2 | J25: 0.1 | K25: 0.1 | L25: 66 | M25: 66 | N25: 0 | O25: 0 | P25: 0.1 | Q25: 0.1 | R25: 1.2 | S25: 1.9 | T25: 0.04 | U25: 0.02
B26: 42 | C26: сыр | D26: 20 | E26: 20 | F26: 4.64 | G26: 4.64 | H26: 5.9 | I26: 5.9 | L26: 72.8 | M26: 72.8 | N26: 0.01 | O26: 0.14 | P26: 52 | R26: 176 | S26: 100 | T26: 7 | U26: 0.2
B27: 943 | C27: Чай с сахаром | D27: 200 | E27: 200 | F27: 1.4 | G27: 1.4 | H27: 0 | I27: 0 | J27: 14 | K27: 14 | L27: 28 | M27: 28 | N27: 0 | O27: 0 | P27: 0 | Q27: 0 | R27: 6 | S27: 0 | T27: 0 | U27: 0.4
C28: Хлеб пш., рж. | D28: 30 | E28: 50 | F28: 2.28 | G28: 3.8 | H28: 70.5 | I28: 117.5 | J28: 0.24 | K28: 0.4 | L28: 14.76 | M28: 24.6 | N28: 0.11 | O28: 0 | P28: 0 | Q28: 1.1 | R28: 20 | S28: 65 | T28: 14 | U28: 1.1
B29: ИТОГО | F29: 15.57 | G29: 18.33 | H29: 88.67 | I29: 137.19 | J29: 49.47 | K29: 54.29 | L29: =SUM(L24:L28) -> 368.58 | M29: =SUM(M24:M28) -> 415.82 | N29: 0.25 | O29: 3.09 | P29: 0.27 | Q29: 4.37 | R29: 600.43 | S29: 623.28 | T29: 98.92 | U29: 2.9
B30: ОБЕД
B31: 688 | C31: Макароны отварные | D31: 150 | E31: 200 | F31: 5.52 | G31: 7.36 | H31: 4.52 | I31: 6.02 | J31: 26.45 | K31: 35.26 | L31: 168.45 | M31: 224.6 | N31: 0.08 | O31: 0 | P31: 28 | Q31: 0.14 | R31: 6.48 | S31: 49.56 | T31: 28.16 | U31: 1.48
B32: 637 | C32: Птица отварная (курица) | D32: 100 | E32: 200 | F32: 26.03 | G32: 52.06 | H32: 26.03 | I32: 52.06 | J32: 1.39 | K32: 2.77 | L32: 346.69 | M32: 693.37 | N32: 0.08 | O32: 0.4 | P32: 0.05 | Q32: 0.76 | R32: 32.73 | S32: 147.53 | T32: 23 | U32: 0.66
B33: 255 | C33: Компот из сухофруктов (вит С) | D33: 200 | E33: 200 | F33: 0.56 | G33: 0.56 | H33: 0 | I33: 0 | J33: 27.89 | K33: 27.89 | L33: 113.79 | M33: 113.79 | N33: 0.18 | O33: 0 | P33: 1 | Q33: 1.4 | R33: 35 | S33: 35 | T33: 47 | U33: 3.9
C34: Хлеб пш., рж. | D34: 30 | E34: 50 | F34: 2.28 | G34: 3.8 | H34: 70.5 | I34: 117.5 | J34: 0.24 | K34: 0.4 | L34: 14.76 | M34: 24.6 | N34: 0.11 | O34: 0 | P34: 0 | Q34: 1.1 | R34: 20 | S34: 65 | T34: 14 | U34: 1.1
B35: ИТОГО | F35: 45.12 | G35: 79.51 | H35: 47.43 | I35: 81.67 | J35: 132.37 | K35: 178.93 | L35: 1013.82 | M35: 1531.45 | N35: 0.8 | O35: 49.58 | P35: 22.61 | Q35: 8.96 | R35: 210.12 | S35: 462.15 | T35: 249.74 | U35: 14.59
B36: ИТОГО ВСЕГО | F36: 60.69 | G36: 97.84 | H36: 136.1 | I36: 218.86 | J36: 181.84 | K36: 233.22 | L36: 1441.93 | M36: 1811.66 | N36: 1.05 | O36: 52.67 | P36: 22.88 | Q36: 13.33 | R36: 810.55 | S36: 1085.43 | T36: 348.66 | U36: 17.49
B38: Номер техно-логи-ческой карты | C38: Наименование блюда | D38: Выход блюд | F38: Пищевые вещества | N38: Витамины (мг) | R38: Минеральные вещества (мг)
C39: 3 день11 | D39: 7–11 лет | E39: 12–16 лет | F39: Белки | H39: Жиры | J39: Углеводы | L39: ККАЛ | N39: В1 | O39: С | P39: А | Q39: Е | R39: Са | S39: Р | T39: Мg | U39: Fe
F40: 7–11 лет | G40: 12-16 лет | H40: 7–11 лет | I40: 12-16 лет | J40: 7–11 лет | K40: 12-16 лет | L40: 7–11 лет | M40: 12-16 лет
B42: ЗАВТРАК
B43: 679 | C43: Каша гречневая рассыпчатая | D43: 150 | E43: 180 | F43: 7.46 | G43: 8.95 | H43: 5.61 | I43: 6.73 | J43: 35.84 | K43: 43 | L43: 230.45 | M43: 276.53 | N43: 0.2 | O43: 0 | P43: 0.02 | Q43: 0.05 | R43: 14.28 | S43: 229.35 | T43: 74.25 | U43: 4.34
B44: 943 | C44: Чай с сахаром | D44: 200 | E44: 200 | F44: 1.4 | G44: 1.4 | H44: 0 | I44: 0 | J44: 14 | K44: 14 | L44: 28 | M44: 28 | N44: 0 | O44: 0 | P44: 0 | Q44: 0 | R44: 6 | S44: 0 | T44: 0 | U44: 0.4
C45: Масло сливочное | D45: 10 | E45: 10 | F45: 0.1 | G45: 0.1 | H45: 7.2 | I45: 7.2 | J45: 0.1 | K45: 0.1 | L45: 66 | M45: 66 | N45: 0 | O45: 0 | P45: 0.1 | Q45: 0.1 | R45: 1.2 | S45: 1.9 | T45: 0.04 | U45: 0.02
C46: Хлеб пш., рж. | D46: 30 | E46: 50 | F46: 2.28 | G46: 3.8 | H46: 70.5 | I46: 117.5 | J46: 0.24 | K46: 0.4 | L46: 14.76 | M46: 24.6 | N46: 0.11 | O46: 0 | P46: 0 | Q46: 1.1 | R46: 20 | S46: 65 | T46: 14 | U46: 1.1
B47: ИТОГО | F47: 25.19 | G47: 36.39 | H47: 103.83 | I47: 165.55 | J47: 29.09 | K47: 30.65 | L47: 521.85 | M47: 708.12 | N47: 0.31 | O47: 1.4 | P47: 0.54 | Q47: 2.19 | R47: 534.25 | S47: 816.31 | T47: 88.77 | U47: 4.42
B48: ОБЕД
B49: 33 | C49: Салат из варенной свеклы | D49: 100 | E49: 100 | F49: 1.43 | G49: 1.43 | H49: 6.09 | I49: 6.09 | J49: 8.36 | K49: 8.36 | L49: 93.9 | M49: 93.9 | N49: 0.02 | O49: 9.5 | P49: 0 | Q49: 0.09 | R49: 35.15 | S49: 40.97 | T49: 20.9 | U49: 1.33
B50: 216 | C50: Картофельное пюре | D50: 150 | E50: 200 | F50: 3.2 | G50: 4.26 | H50: 6.06 | I50: 8.08 | J50: 23.3 | K50: 31.06 | L50: 160.46 | M50: 213.94 | N50: 0.16 | O50: 21.43 | P50: 0.12 | Q50: 0.14 | R50: 45.56 | S50: 103.59 | T50: 42.19 | U50: 1.18
B51: 486 | C51: Рыба тушенная в томатном соусе с овощами | D51: 75/75 | E51: 75/75 | F51: 13.87 | G51: 13.87 | H51: 7.85 | I51: 7.85 | J51: 6.53 | K51: 6.53 | L51: 150 | M51: 150 | N51: 0.1 | O51: 3.35 | P51: 0.01 | Q51: 0.18 | R51: 52.11 | S51: 238.46 | T51: 59.77 | U51: 0.96
B52: 255 | C52: Компот из сухофруктов (вит С) | D52: 200 | E52: 200 | F52: 0.56 | G52: 0.56 | H52: 0 | I52: 0 | J52: 27.89 | K52: 27.89 | L52: 113.79 | M52: 113.79 | N52: 0.18 | O52: 0 | P52: 1 | Q52: 1.4 | R52: 35 | S52: 35 | T52: 47 | U52: 3.9
C53: Хлеб пш., рж. | D53: 30 | E53: 50 | F53: 2.28 | G53: 3.8 | H53: 70.5 | I53: 117.5 | J53: 0.24 | K53: 0.4 | L53: 14.76 | M53: 24.6 | N53: 0.11 | O53: 0 | P53: 0 | Q53: 1.1 | R53: 20 | S53: 65 | T53: 14 | U53: 1.1
B54: ИТОГО | F54: 23.8 | G54: 33.14 | H54: 39.27 | I54: 53.13 | J54: 115.28 | K54: 159.91 | L54: 757.87 | M54: 983.3 | N54: 4.66 | O54: 78.81 | P54: 17.73 | Q54: 2.33 | R54: 335.97 | S54: 501.16 | T54: 240.27 | U54: 13.7
B55: ИТОГО ВСЕГО | F55: 48.99 | G55: 69.53 | H55: 143.1 | I55: 218.68 | J55: 144.37 | K55: 190.56 | L55: 1279.72 | M55: 1691.42 | N55: 4.97 | O55: 80.21 | P55: 18.27 | Q55: 4.52 | R55: 870.22 | S55: 1317.47 | T55: 329.04 | U55: 18.12
B57: Номер техно-логи-ческой карты | C57: Наименование блюда | D57: Выход блюд | F57: Пищевые вещества | N57: Витамины (мг) | R57: Минеральные вещества (мг)
C58: 4 день4 | D58: 7–11 лет | E58: 12–16 лет | F58: Белки | H58: Жиры | J58: Углеводы | L58: ККАЛ | N58: В1 | O58: С | P58: А | Q58: Е | R58: Са | S58: Р | T58: Мg | U58: Fe
F59: 7–11 лет | G59: 12-16 лет | H59: 7–11 лет | I59: 12-16 лет | J59: 7–11 лет | K59: 12-16 лет | L59: 7–11 лет | M59: 12-16 лет
B61: ЗАВТРАК
B62: 679 | C62: Каша ячневая | D62: 150 | E62: 180 | F62: 4.79 | G62: 5.74 | H62: 4.26 | I62: 5.11 | J62: 30.83 | K62: 36.99 | L62: 187.02 | M62: 224.42 | N62: 0.09 | O62: 0 | P62: 0.02 | Q62: 0.05 | R62: 39.14 | S62: 168 | T62: 0.02 | U62: 0.83
C63: Масло сливочное | D63: 10 | E63: 10 | F63: 0.1 | G63: 0.1 | H63: 7.2 | I63: 7.2 | J63: 0.1 | K63: 0.1 | L63: 66 | M63: 66 | N63: 0 | O63: 0 | P63: 0.1 | Q63: 0.1 | R63: 1.2 | S63: 1.9 | T63: 0.04 | U63: 0.02
B64: 943 | C64: Чай с сахаром | D64: 200 | E64: 200 | F64: 1.4 | G64: 1.4 | H64: 0 | I64: 0 | J64: 14 | K64: 14 | L64: 28 | M64: 28 | N64: 0 | O64: 0 | P64: 0 | Q64: 0 | R64: 6 | S64: 0 | T64: 0 | U64: 0.4
C65: Хлеб пш., рж. | D65: 30 | E65: 50 | F65: 30 | G65: 50 | H65: 2.28 | I65: 3.8 | J65: 70.5 | K65: 117.5 | L65: 0.24 | M65: 0.4 | N65: 14.76 | O65: 24.6 | P65: 0 | Q65: 0 | R65: 10 | S65: 32.5 | T65: 7 | U65: 0.5
B66: ИТОГО | F66: 46 | G66: 67.81 | H66: 30.64 | I66: 34.17 | J66: 190.91 | K66: 246.51 | L66: 995.4 | M66: 1055.05 | N66: 0.3 | O66: 3.08 | P66: 0.35 | Q66: 0.6 | R66: 351.74 | S66: 456.82 | T66: 77.15 | U66: 161.71
B67: ОБЕД
C68: Салат из моркови отварной | D68: 100 | E68: 150 | F68: 1.43 | G68: 2.15 | H68: 5.09 | I68: 7.64 | J68: 9.5 | K68: 14.25 | L68: 75.35 | M68: 113.03 | N68: 14.5 | O68: 0.01 | P68: 0.06 | Q68: 72.05 | R68: 66.1 | S68: 33 | T68: 2.2 | U68: 14.5
B69: 76 | C69: Рассольник Ленинградский м.к/б | D69: 250 | E69: 300 | F69: 1.99 | G69: 2.39 | H69: 5.11 | I69: 6.13 | J69: 16.92 | K69: 20.3 | L69: 121.75 | M69: 146.1 | N69: 0.095 | O69: 7.53 | P69: 0 | Q69: 41.3 | R69: 24.95 | U69: 0.93
C70: Хлеб пш., рж. | D70: 30 | E70: 50 | F70: 30 | G70: 50 | H70: 2.28 | I70: 3.8 | J70: 70.5 | K70: 117.5 | L70: 0.24 | M70: 0.4 | N70: 14.76 | O70: 24.6 | P70: 0 | Q70: 0 | R70: 10 | S70: 32.5 | T70: 7 | U70: 0.5
B71: 255 | C71: Компот из сухофруктов (вит С) | D71: 200 | E71: 200 | F71: 0.56 | G71: 0.56 | H71: 0 | I71: 0 | J71: 27.89 | K71: 27.89 | L71: 113.79 | M71: 113.79 | N71: 0.18 | O71: 0 | P71: 1 | Q71: 1.4 | R71: 35 | S71: 35 | T71: 47 | U71: 3.9
B72: ИТОГО | F72: 27.54 | G72: 38.03 | H72: 30.73 | I72: 40.96 | J72: 134.71 | K72: 188.56 | L72: 738.3 | M72: 965.64 | N72: 57.36 | O72: 3.9 | P72: 1.78 | Q72: 396.29 | R72: 763.86 | S72: 425.66 | T72: 53.12 | U72: 61.08
B73: ИТОГО ВСЕГО | F73: 72.11 | G73: 105.84 | H73: 61.37 | I73: 75.13 | J73: 325.62 | K73: 435.07 | L73: 1733.7 | M73: 2020.69 | N73: 57.66 | O73: 6.98 | P73: 2.13 | Q73: 396.89 | R73: 1115.6 | S73: 882.48 | T73: 130.27 | U73: 222.79
B75: Номер техно-логи-ческой карты | C75: Наименование блюда | D75: Выход блюд | F75: Пищевые вещества | N75: Витамины (мг) | R75: Минеральные вещества (мг)
C76: 5 день3 | D76: 7–11 лет | E76: 12–16 лет | F76: Белки | H76: Жиры | J76: Углеводы | L76: ККАЛ | N76: В1 | O76: С | P76: А | Q76: Е | R76: Са | S76: Р | T76: Мg | U76: Fe
F77: 7–11 лет | G77: 12-16 лет | H77: 7–11 лет | I77: 12-16 лет | J77: 7–11 лет | K77: 12-16 лет | L77: 7–11 лет | M77: 12-16 лет
B79: ЗАВТРАК
B80: 679 | C80: Каша пшенная | D80: 150 | E80: 180 | F80: 6.6 | G80: 7.92 | H80: 5.72 | I80: 6.86 | J80: 37.88 | K80: 45.45 | L80: 229.50 | M80: 275.4 | N80: 0.17 | O80: 0 | P80: 21 | Q80: 0.15 | R80: 16.64 | S80: 134.43 | T80: 47.34 | U80: 1.55
C81: Масло сливочное | D81: 10 | E81: 10 | F81: 0.1 | G81: 0.1 | H81: 7.2 | I81: 7.2 | J81: 0.1 | K81: 0.1 | L81: 66 | M81: 66 | N81: 0 | O81: 0 | P81: 0.1 | Q81: 0.1 | R81: 1.2 | S81: 1.9 | T81: 0.04 | U81: 0.02
B82: 943 | C82: Чай с сахаром | D82: 200 | E82: 200 | F82: 1.4 | G82: 1.4 | H82: 0 | I82: 0 | J82: 14 | K82: 14 | L82: 28 | M82: 28 | N82: 0 | O82: 0 | P82: 0 | Q82: 0 | R82: 6 | S82: 0 | T82: 0 | U82: 0.4
C83: Хлеб пш., рж. | D83: 30 | E83: 50 | F83: 30 | G83: 50 | H83: 2.28 | I83: 3.8 | J83: 70.5 | K83: 117.5 | L83: 0.24 | M83: 0.4 | N83: 14.76 | O83: 24.6 | P83: 0 | Q83: 0 | R83: 10 | S83: 32.5 | T83: 7 | U83: 0.5
B84: ИТОГО | F84: 45.46 | G84: 65.1 | H84: 18.69 | I84: 22.63 | J84: 121.09 | K84: 173.03 | L84: 411.85 | M84: 461.95 | N84: 14.87 | O84: 27.22 | P84: 0.19 | Q84: 0.46 | R84: 771.96 | S84: 647.17 | T84: 90.23 | U84: 2.7
B85: ОБЕД
B86: 45 | C86: Винегрет овощной | D86: 100 | E86: 150 | F86: 1.26 | G86: 1.89 | H86: 10.14 | I86: 15.21 | J86: 8.32 | K86: 12.48 | L86: 129.26 | M86: 193.89 | N86: 0.04 | O86: 5.34 | P86: 0.2 | Q86: 4.45 | R86: 21.4 | S86: 39.91 | T86: 18.03 | U86: 0.75
B87: 304 | C87: Плов из птицы | D87: 210 | E87: 210 | F87: 20.3 | G87: 20.3 | H87: 17 | I87: 17 | J87: 35.69 | K87: 35.69 | L87: 377 | M87: 377 | N87: 0.06 | O87: 1.01 | P87: 48 | Q87: 0.14 | R87: 45.1 | S87: 199.3 | T87: 47.5 | U87: 2.19
B88: 255 | C88: Компот из сухофруктов (вит С) | D88: 200 | E88: 200 | F88: 0.56 | G88: 0.56 | H88: 0 | I88: 0 | J88: 27.89 | K88: 27.89 | L88: 113.79 | M88: 113.79 | N88: 0.18 | O88: 0 | P88: 1 | Q88: 1.4 | R88: 35 | S88: 35 | T88: 47 | U88: 3.9
C89: Хлеб пш., рж. | D89: 30 | E89: 50 | F89: 30 | G89: 50 | H89: 2.28 | I89: 3.8 | J89: 70.5 | K89: 117.5 | L89: 0.24 | M89: 0.4 | N89: 14.76 | O89: 24.6 | P89: 0 | Q89: 0 | R89: 10 | S89: 32.5 | T89: 7 | U89: 0.5
B90: ИТОГО | F90: 22.27 | G90: 30.53 | H90: 18.02 | I90: 25.21 | J90: 92.07 | K90: 128.57 | L90: 450.38 | M90: 578.49 | N90: 0.54 | O90: 55.35 | P90: 7.69 | Q90: 2.09 | R90: 205.11 | S90: 430.52 | T90: 165.71 | U90: 11.71
B91: ИТОГО ВСЕГО | F91: 67.73 | G91: 95.63 | H91: 36.71 | I91: 47.84 | J91: 213.16 | K91: 301.6 | L91: 862.23 | M91: 1040.44 | N91: 15.41 | O91: 82.57 | P91: 7.88 | Q91: 2.55 | R91: 977.07 | S91: 1077.69 | T91: 255.94 | U91: 14.41
B93: Номер техно-логи-ческой карты | C93: Наименование блюда | D93: Выход блюд | F93: Пищевые вещества | N93: Витамины (мг) | R93: Минеральные вещества (мг)
C94: 6 день6 | D94: 7–11 лет | E94: 12–16 лет | F94: Белки | H94: Жиры | J94: Углеводы | L94: ККАЛ | N94: В1 | O94: С | P94: А | Q94: Е | R94: Са | S94: Р | T94: Мg | U94: Fe
F95: 7–11 лет | G95: 12-16 лет | H95: 7–11 лет | I95: 12-16 лет | J95: 7–11 лет | K95: 12-16 лет | L95: 7–11 лет | M95: 12-16 лет
B97: ОБЕД
B98: 208 | C98: Суп картофельный с макаронными изделиями на кур. бульоне | D98: 250 | E98: 300 | F98: 3.69 | G98: 4.43 | H98: 2.86 | I98: 3.43 | J98: 17.14 | K98: 20.57 | L98: 110.75 | M98: 132.9 | N98: 35.7 | O98: 1.65 | P98: 0.2 | Q98: 41.3 | R98: 193.35 | S98: 61.34 | T98: 2.17 | U98: 35.7
C99: Хлеб пш., рж. | D99: 30 | E99: 50 | F99: 30 | G99: 50 | H99: 2.28 | I99: 3.8 | J99: 70.5 | K99: 117.5 | L99: 0.24 | M99: 0.4 | N99: 14.76 | O99: 24.6 | P99: 0 | Q99: 0 | R99: 10 | S99: 32.5 | T99: 7 | U99: 0.5
C100: Булочка | D100: 60 | E100: 60
B101: 255 | C101: Компот из сухофруктов (вит С) | D101: 200 | E101: 200 | F101: 0.56 | G101: 0.56 | H101: 0 | I101: 0 | J101: 27.89 | K101: 27.89 | L101: 113.79 | M101: 113.79 | N101: 0.18 | O101: 0 | P101: 1 | Q101: 1.4 | R101: 35 | S101: 35 | T101: 47 | U101: 3.9
B102: ИТОГО | F102: 27.54 | G102: 38.03 | H102: 30.73 | I102: 40.96 | J102: 134.71 | K102: 188.56 | L102: 738.3 | M102: 965.64 | N102: 57.36 | O102: 3.9 | P102: 1.78 | Q102: 396.29 | R102: 763.86 | S102: 425.66 | T102: 53.12 | U102: 61.08
B103: ИТОГО ВСЕГО | F103: 72.11 | G103: 105.84 | H103: 61.37 | I103: 75.13 | J103: 325.62 | K103: 435.07 | L103: 1733.7 | M103: 2020.69 | N103: 57.66 | O103: 6.98 | P103: 2.13 | Q103: 396.89 | R103: 1115.6 | S103: 882.48 | T103: 130.27 | U103: 222.79
B105: Номер техно-логи-ческой карты | C105: Наименование блюда | D105: Выход блюд | F105: Пищевые вещества | N105: Витамины (мг) | R105: Минеральные вещества (мг)
C106: 7 день7 | D106: 7–11 лет | E106: 12–16 лет | F106: Белки | H106: Жиры | J106: Углеводы | L106: ККАЛ | N106: В1 | O106: С | P106: А | Q106: Е | R106: Са | S106: Р | T106: Мg | U106: Fe
F107: 7–11 лет | G107: 12-16 лет | H107: 7–11 лет | I107: 12-16 лет | J107: 7–11 лет | K107: 12-16 лет | L107: 7–11 лет | M107: 12-16 лет
B109: ЗАВТРАК
B110: 688 | C110: Макароны отварные | D110: 150 | E110: 200 | F110: 5.52 | G110: 7.36 | H110: 4.52 | I110: 6.02 | J110: 26.45 | K110: 35.26 | L110: 168.45 | M110: 224.6 | N110: 0.08 | O110: 0 | P110: 28 | Q110: 0.14 | R110: 6.48 | S110: 49.56 | T110: 28.16 | U110: 1.48
C111: Масло сливочное | D111: 10 | E111: 10 | F111: 0.1 | G111: 0.1 | H111: 7.2 | I111: 7.2 | J111: 0.1 | K111: 0.1 | L111: 66 | M111: 66 | N111: 0 | O111: 0 | P111: 0.1 | Q111: 0.1 | R111: 1.2 | S111: 1.9 | T111: 0.04 | U111: 0.02
C112: Хлеб пш., рж. | D112: 30 | E112: 50 | F112: 30 | G112: 50 | H112: 2.28 | I112: 3.8 | J112: 70.5 | K112: 117.5 | L112: 0.24 | M112: 0.4 | N112: 14.76 | O112: 24.6 | P112: 0 | Q112: 0 | R112: 10 | S112: 32.5 | T112: 7 | U112: 0.5
B113: 943 | C113: Чай с сахаром | D113: 200 | E113: 200 | F113: 1.4 | G113: 1.4 | H113: 0 | I113: 0 | J113: 14 | K113: 14 | L113: 28 | M113: 28 | N113: 0 | O113: 0 | P113: 0 | Q113: 0 | R113: 6 | S113: 0 | T113: 0 | U113: 0.4
B114: ИТОГО | F114: 18.72 | G114: 20.23 | H114: 34.26 | I114: 36.22 | J114: 120.92 | K114: 128.51 | L114: 1065.91 | M114: 1120.06 | N114: 0.29 | O114: 3.39 | P114: 0.36 | Q114: 0.63 | R114: 460.38 | S114: 476.55 | T114: 108.04 | U114: 3.24
B115: ОБЕД
B116: 114 | C116: Пюре из гороха | D116: 150 | E116: 200 | F116: 5.03 | G116: 6.04 | H116: 11.3 | I116: 13.56 | J116: 32.38 | K116: 38.86 | L116: 232.20 | M116: 309.6 | N116: 0.19 | O116: 27.67 | P116: 1.57 | Q116: 0.14 | R116: 55.55 | S116: 133.92 | T116: 45.68 | U116: 1.83
B117: 536 | C117: Сосиски, сардельки | D117: 80 | E117: 100 | F117: 8.32 | G117: 10.4 | H117: 16 | I117: 20 | J117: 16.96 | K117: 21.2 | L117: 179.2 | M117: 224 | N117: 0.04 | O117: 0 | P117: 0 | Q117: 0.05 | R117: 24 | S117: 159 | T117: 20 | U117: 1.8
C118: Хлеб пш., рж. | D118: 30 | E118: 50 | F118: 30 | G118: 50 | H118: 2.28 | I118: 3.8 | J118: 70.5 | K118: 117.5 | L118: 0.24 | M118: 0.4 | N118: 14.76 | O118: 24.6 | P118: 0 | Q118: 0 | R118: 10 | S118: 32.5 | T118: 7 | U118: 0.5
B119: 943 | C119: Чай с сахаром | D119: 200 | E119: 200 | F119: 1.4 | G119: 1.4 | H119: 0 | I119: 0 | J119: 14 | K119: 14 | L119: 28 | M119: 28 | N119: 0 | O119: 0 | P119: 0 | Q119: 0 | R119: 6 | S119: 0 | T119: 0 | U119: 0.4
B120: ИТОГО | F120: 25.04 | G120: 34.34 | H120: 40.39 | I120: 56.02 | J120: 147.04 | K120: 200.1 | L120: 782.21 | M120: 1036.49 | N120: 0.56 | O120: 109.35 | P120: 30.12 | Q120: 1.97 | R120: 277.83 | S120: 525.06 | T120: 242.86 | U120: 14.56
B121: ИТОГО ВСЕГО | F121: 18.72 | G121: 20.23 | H121: 34.26 | I121: 36.22 | J121: 120.92 | K121: 128.51 | L121: 1065.91 | M121: 1120.06 | N121: 0.29 | O121: 3.39 | P121: 0.36 | Q121: 0.63 | R121: 460.38 | S121: 476.55 | T121: 108.04 | U121: 3594.47
B123: Номер техно-логи-ческой карты | C123: Наименование блюда | D123: Выход блюд | F123: Пищевые вещества | N123: Витамины (мг) | R123: Минеральные вещества (мг)
C124: 8 день12 | D124: 7–11 лет | E124: 12–16 лет | F124: Белки | H124: Жиры | J124: Углеводы | L124: ККАЛ | N124: В1 | O124: С | P124: А | Q124: Е | R124: Са | S124: Р | T124: Мg | U124: Fe
F125: 7–11 лет | G125: 12-16 лет | H125: 7–11 лет | I125: 12-16 лет | J125: 7–11 лет | K125: 12-16 лет | L125: 7–11 лет | M125: 12-16 лет
B127: ЗАВТРАК
C128: Каша рисовая | D128: 200 | E128: 250 | F128: 10.24 | G128: 12.8 | H128: 13.24 | I128: 16.55 | J128: 65.22 | K128: 81.53 | L128: 420.3 | M128: 525.4 | N128: 0.1 | O128: 2.6 | P128: 0.16 | Q128: 3 | R128: 241.76 | S128: 232.06 | T128: 45.08 | U128: 0.51
C129: Масло сливочное | D129: 10 | E129: 10 | F129: 0.1 | G129: 0.1 | H129: 7.2 | I129: 7.2 | J129: 0.1 | K129: 0.1 | L129: 66 | M129: 66 | N129: 0 | O129: 0 | P129: 0.1 | Q129: 0.1 | R129: 1.2 | S129: 1.9 | T129: 0.04 | U129: 0.02
B130: 943 | C130: Чай с сахаром | D130: 200 | E130: 200 | F130: 1.4 | G130: 1.4 | H130: 0 | I130: 0 | J130: 14 | K130: 14 | L130: 28 | M130: 28 | N130: 0 | O130: 0 | P130: 0 | Q130: 0 | R130: 6 | S130: 0 | T130: 0 | U130: 0.4
C131: Хлеб пш., рж. | D131: 30 | E131: 50 | F131: 30 | G131: 50 | H131: 2.28 | I131: 3.8 | J131: 70.5 | K131: 117.5 | L131: 0.24 | M131: 0.4 | N131: 14.76 | O131: 24.6 | P131: 0 | Q131: 0 | R131: 10 | S131: 32.5 | T131: 7 | U131: 0.5
B132: ИТОГО | F132: 40.16 | G132: 62.43 | H132: 14.52 | I132: 18.7 | J132: 129.71 | K132: 185.07 | L132: 388.65 | M132: 455.14 | N132: 18.88 | O132: 53.88 | P132: 0.16 | Q132: 0.28 | R132: 282.15 | S132: 357.63 | T132: 42.54 | U132: 3.18
B133: ОБЕД
B134: 33 | C134: Салат из варенной свеклы | D134: 100 | E134: 100 | F134: 1.43 | G134: 1.43 | H134: 6.09 | I134: 6.09 | J134: 8.36 | K134: 8.36 | L134: 93.9 | M134: 93.9 | N134: 0.02 | O134: 9.5 | P134: 0 | Q134: 0.09 | R134: 35.15 | S134: 40.97 | T134: 20.9 | U134: 1.33
B135: 87 | C135: Суп картофельный с рыбными консервами | D135: 250 | E135: 300 | F135: 8.61 | G135: 10.33 | H135: 8.4 | I135: 10.08 | J135: 14.34 | K135: 17.21 | L135: 167.25 | M135: 200.7 | N135: 0.14 | O135: 9.11 | P135: 15 | Q135: 0.1 | R135: 45.3 | S135: 176.53 | T135: 47.35 | U135: 1.26
C136: Хлеб пш., рж. | D136: 30 | E136: 50 | F136: 30 | G136: 50 | H136: 2.28 | I136: 3.8 | J136: 70.5 | K136: 117.5 | L136: 0.24 | M136: 0.4 | N136: 14.76 | O136: 24.6 | P136: 0 | Q136: 0 | R136: 10 | S136: 32.5 | T136: 7 | U136: 0.5
B137: 247 | C137: Кисель (вит С) | D137: 200 | E137: 200 | F137: 1.36 | G137: 1.36 | H137: 0 | I137: 0 | J137: 29.02 | K137: 29.02 | L137: 116.19 | M137: 116.19 | N137: 0 | O137: 0 | P137: 0 | Q137: 0 | R137: 0.68 | S137: 0 | T137: 0 | U137: 0.1
B138: ИТОГО | F138: 46.15 | G138: 56.09 | H138: 54.58 | I138: 61.93 | J138: 121.88 | K138: 150.22 | L138: 1006.68 | M138: 1156.77 | N138: 0.49 | O138: 47.39 | P138: 4.64 | Q138: 1.68 | R138: 114.89 | S138: 389.36 | T138: 158.42 | U138: 8.35
B139: ИТОГО ВСЕГО | F139: 86.31 | G139: 118.52 | H139: 69.1 | I139: 80.63 | J139: 251.59 | K139: 335.29 | L139: 1395.33 | M139: 1611.91 | N139: 18.88 | O139: 53.88 | P139: 0.16 | Q139: 0.28 | R139: 282.15 | S139: 357.63 | T139: 42.54 | U139: 755.52
B141: Номер техно-логи-ческой карты | C141: Наименование блюда | D141: Выход блюд | F141: Пищевые вещества | N141: Витамины (мг) | R141: Минеральные вещества (мг)
C142: 9 день9 | D142: 7–11 лет | E142: 12–16 лет | F142: Белки | H142: Жиры | J142: Углеводы | L142: ККАЛ | N142: В1 | O142: С | P142: А | Q142: Е | R142: Са | S142: Р | T142: Мg | U142: Fe
F143: 7–11 лет | G143: 12-16 лет | H143: 7–11 лет | I143: 12-16 лет | J143: 7–11 лет | K143: 12-16 лет | L143: 7–11 лет | M143: 12-16 лет
B145: ЗАВТРАК
B146: 679 | C146: Каша гречневая рассыпчатая | D146: 150 | E146: 180 | F146: 7.46 | G146: 8.95 | H146: 5.61 | I146: 6.73 | J146: 35.84 | K146: 43 | L146: 230.45 | M146: 276.53 | N146: 0.2 | O146: 0 | P146: 0.02 | Q146: 0.05 | R146: 14.28 | S146: 229.35 | T146: 74.25 | U146: 4.34
C147: Масло сливочное | D147: 10 | E147: 10 | F147: 0.1 | G147: 0.1 | H147: 7.2 | I147: 7.2 | J147: 0.1 | K147: 0.1 | L147: 66 | M147: 66 | N147: 0 | O147: 0 | P147: 0.1 | Q147: 0.1 | R147: 1.2 | S147: 1.9 | T147: 0.04 | U147: 0.02
B148: 42 | C148: сыр | D148: 20 | E148: 20 | F148: 4.64 | G148: 4.64 | H148: 5.9 | I148: 5.9 | L148: 72.8 | M148: 72.8 | N148: 0.01 | O148: 0.14 | P148: 52 | R148: 176 | S148: 100 | T148: 7 | U148: 0.2
B149: 943 | C149: Чай с сахаром | D149: 200 | E149: 200 | F149: 1.4 | G149: 1.4 | H149: 0 | I149: 0 | J149: 14 | K149: 14 | L149: 28 | M149: 28 | N149: 0 | O149: 0 | P149: 0 | Q149: 0 | R149: 6 | S149: 0 | T149: 0 | U149: 0.4
C150: Хлеб пш., рж. | D150: 30 | E150: 50 | F150: 30 | G150: 50 | H150: 2.28 | I150: 3.8 | J150: 70.5 | K150: 117.5 | L150: 0.24 | M150: 0.4 | N150: 14.76 | O150: 24.6 | P150: 0 | Q150: 0 | R150: 10 | S150: 32.5 | T150: 7 | U150: 0.5
B151: ИТОГО | F151: 58.69 | G151: 82.99 | H151: 22.08 | I151: 24.72 | J151: 126.22 | K151: 179.16 | L151: 516.18 | M151: 567.39 | N151: 14.94 | O151: 26.01 | P151: 0.54 | Q151: 0.87 | R151: 670.99 | S151: 802.02 | T151: 76.86 | U151: 3.59
B152: ОБЕД
C153: Картофельное пюре | D153: 150 | E153: 200 | F153: 3.2 | G153: 4.26 | H153: 6.06 | I153: 8.08 | J153: 23.3 | K153: 31.06 | L153: 160.46 | M153: 213.94 | N153: 0.16 | O153: 21.43 | P153: 0.12 | Q153: 0.14 | R153: 45.56 | S153: 103.59 | T153: 42.19 | U153: 1.18
B154: 591 | C154: гуляш | D154: 80/75 | E154: 80/75 | F154: 19.72 | G154: 19.72 | H154: 17.89 | I154: 17.89 | J154: 4.76 | K154: 4.76 | L154: 168.2 | M154: 168.2 | N154: 0.17 | O154: 1.28 | P154: 0 | Q154: 0.76 | R154: 24.36 | S154: 194.69 | T154: 26.01 | U154: 2.32
B155: 255 | C155: Компот из сухофруктов (вит С) | D155: 200 | E155: 200 | F155: 0.56 | G155: 0.56 | H155: 0 | I155: 0 | J155: 27.89 | K155: 27.89 | L155: 113.79 | M155: 113.79 | N155: 0.18 | O155: 0 | P155: 1 | Q155: 1.4 | R155: 35 | S155: 35 | T155: 47 | U155: 3.9
C156: Хлеб ржаной | D156: 30 | E156: 50 | F156: 8.1 | G156: 13.5 | H156: 3.3 | I156: 5.5 | J156: 40.8 | K156: 68 | L156: 52.2 | M156: 87 | N156: 0.18 | O156: 0 | P156: 1 | Q156: 1.4 | R156: 35 | S156: 35 | T156: 47 | U156: 3.9
B157: ИТОГО | F157: 34.38 | G157: 45.85 | H157: 45.76 | I157: 60.28 | J157: 103.94 | K157: 143.6 | L157: 789.03 | M157: 1007.65 | N157: 0.64 | O157: 35.77 | P157: 5251.85 | Q157: 3.32 | R157: 198.57 | S157: 278.11 | T157: 201.99 | U157: 11.58
B158: ИТОГО ВСЕГО | F158: 93.07 | G158: 128.84 | H158: 67.84 | I158: 85 | J158: 230.16 | K158: 322.76 | L158: 1305.21 | M158: 1575.04 | N158: 15.58 | O158: 61.78 | P158: 5252.39 | Q158: 4.19 | R158: 869.56 | S158: 1080.13 | T158: 278.85 | U158: 15.17
B160: Номер техно-логи-ческой карты | C160: Наименование блюда. | D160: Выход блюд | F160: Пищевые вещества | N160: Витамины (мг) | R160: Минеральные вещества (мг)
C161: 10 день8 | D161: 7–11 лет | E161: 12–16 лет | F161: Белки | H161: Жиры | J161: Углеводы | L161: ККАЛ | N161: В1 | O161: С | P161: А | Q161: Е | R161: Са | S161: Р | T161: Мg | U161: Fe
F162: 7–11 лет | G162: 12-16 лет | H162: 7–11 лет | I162: 12-16 лет | J162: 7–11 лет | K162: 12-16 лет | L162: 7–11 лет | M162: 12-16 лет
B164: ЗАВТРАК
B165: 679 | C165: Каша пшенная | D165: 150 | E165: 180 | F165: 6.6 | G165: 7.92 | H165: 5.72 | I165: 6.86 | J165: 37.88 | K165: 45.45 | L165: 229.50 | M165: 275.4 | N165: 0.17 | O165: 0 | P165: 21 | Q165: 0.15 | R165: 16.64 | S165: 134.43 | T165: 47.34 | U165: 1.55
C166: Масло сливочное | D166: 10 | E166: 10 | F166: 0.1 | G166: 0.1 | H166: 7.2 | I166: 7.2 | J166: 0.1 | K166: 0.1 | L166: 66 | M166: 66 | N166: 0 | O166: 0 | P166: 0.1 | Q166: 0.1 | R166: 1.2 | S166: 1.9 | T166: 0.04 | U166: 0.02
B167: 943 | C167: Чай с сахаром | D167: 200 | E167: 200 | F167: 1.4 | G167: 1.4 | H167: 0 | I167: 0 | J167: 14 | K167: 14 | L167: 28 | M167: 28 | N167: 0 | O167: 0 | P167: 0 | Q167: 0 | R167: 6 | S167: 0 | T167: 0 | U167: 0.4
C168: Хлеб пш., рж. | D168: 30 | E168: 50 | F168: 30 | G168: 50 | H168: 2.28 | I168: 3.8 | J168: 70.5 | K168: 117.5 | L168: 0.24 | M168: 0.4 | N168: 14.76 | O168: 24.6 | P168: 0 | Q168: 0 | R168: 10 | S168: 32.5 | T168: 7 | U168: 0.5
B169: ИТОГО | F169: 42.36 | G169: 66.92 | H169: 18.17 | I169: 26.17 | J169: 114.74 | K169: 167.53 | L169: 369.5 | M169: 469.28 | N169: 16.19 | O169: 24.66 | P169: 0.43 | Q169: 240.17 | R169: 234.12 | S169: 568.32 | T169: 29.76 | U169: 8.48
B170: ОБЕД
B171: 45 | C171: Винегрет овощной | D171: 100 | E171: 150 | F171: 1.26 | G171: 1.89 | H171: 10.14 | I171: 15.21 | J171: 8.32 | K171: 12.48 | L171: 129.26 | M171: 193.89 | N171: 0.04 | O171: 5.34 | P171: 0.2 | Q171: 4.45 | R171: 21.4 | S171: 39.91 | T171: 18.03 | U171: 0.75
B172: 187 (53) | C172: щи из свежей капусты с картофелем на к/б (или квашеной) | D172: 250 | E172: 300 | F172: 2.95 | G172: 3.54 | H172: 5.29 | I172: 6.35 | J172: 8.49 | K172: 10.19 | L172: 92.75 | M172: 111.33 | N172: 0.06 | O172: 18.46 | P172: 0.2 | Q172: 41.3 | R172: 43.33 | S172: 47.63 | T172: 22.25 | U172: 0.8
B173: 255 | C173: Компот из сухофруктов (вит С) | D173: 200 | E173: 200 | F173: 0.56 | G173: 0.56 | H173: 0 | I173: 0 | J173: 27.89 | K173: 27.89 | L173: 113.79 | M173: 113.79 | N173: 0.18 | O173: 0 | P173: 1 | Q173: 1.4 | R173: 35 | S173: 35 | T173: 47 | U173: 3.9
C174: Хлеб пш., рж. | D174: 30 | E174: 50 | F174: 30 | G174: 50 | H174: 2.28 | I174: 3.8 | J174: 70.5 | K174: 117.5 | L174: 0.24 | M174: 0.4 | N174: 14.76 | O174: 24.6 | P174: 0 | Q174: 0 | R174: 10 | S174: 32.5 | T174: 7 | U174: 0.5
B175: ИТОГО | F175: 23.87 | G175: 33.54 | H175: 32.13 | I175: 43.7 | J175: 149.04 | K175: 198.09 | L175: 795.14 | M175: 1017.07 | N175: 3.18 | O175: 90.14 | P175: 1383.95 | Q175: 3.5 | R175: 243.27 | S175: 455.94 | T175: 247.49 | U175: 18.43
B176: ИТОГО ВСЕГО | F176: 66.23 | G176: 100.46 | H176: 50.3 | I176: 69.87 | J176: 263.78 | K176: 365.62 | L176: 1164.64 | M176: 1486.35 | N176: 19.37 | O176: 114.8 | P176: 1384.38 | Q176: 243.67 | R176: 477.39 | S176: 1024.26 | T176: 277.25 | U176: 26.91
B178: Номер техно-логи-ческой карты | C178: Наименование блюда. | D178: Выход блюд | F178: Пищевые вещества | N178: Витамины (мг) | R178: Минеральные вещества (мг)
C179: 11 день1 | D179: 7–11 лет | E179: 12–16 лет | F179: Белки | H179: Жиры | J179: Углеводы | L179: ККАЛ | N179: В1 | O179: С | P179: А | Q179: Е | R179: Са | S179: Р | T179: Мg | U179: Fe
F180: 7–11 лет | G180: 12-16 лет | H180: 7–11 лет | I180: 12-16 лет | J180: 7–11 лет | K180: 12-16 лет | L180: 7–11 лет | M180: 12-16 лет
B182: ЗАВТРАК
B183: 679 | C183: Каша ячневая | D183: 150 | E183: 180 | F183: 4.79 | G183: 5.74 | H183: 4.26 | I183: 5.11 | J183: 30.83 | K183: 36.99 | L183: 187.02 | M183: 224.42 | N183: 0.09 | O183: 0 | P183: 0.02 | Q183: 0.05 | R183: 39.14 | S183: 168 | T183: 0.02 | U183: 0.83
C184: Масло сливочное | D184: 10 | E184: 10 | F184: 0.1 | G184: 0.1 | H184: 7.2 | I184: 7.2 | J184: 0.1 | K184: 0.1 | L184: 66 | M184: 66 | N184: 0 | O184: 0 | P184: 0.1 | Q184: 0.1 | R184: 1.2 | S184: 1.9 | T184: 0.04 | U184: 0.02
B185: 943 | C185: Чай с сахаром | D185: 200 | E185: 200 | F185: 1.4 | G185: 1.4 | H185: 0 | I185: 0 | J185: 14 | K185: 14 | L185: 28 | M185: 28 | N185: 0 | O185: 0 | P185: 0 | Q185: 0 | R185: 6 | S185: 0 | T185: 0 | U185: 0.4
C186: Хлеб пш., рж. | D186: 30 | E186: 50 | F186: 30 | G186: 50 | H186: 2.28 | I186: 3.8 | J186: 70.5 | K186: 117.5 | L186: 0.24 | M186: 0.4 | N186: 14.76 | O186: 24.6 | P186: 0 | Q186: 0 | R186: 10 | S186: 32.5 | T186: 7 | U186: 0.5
B187: ИТОГО | F187: 40.86 | G187: 59.7 | H187: 21.04 | I187: 24.09 | J187: 121.3 | K187: 173.24 | L187: 415.49 | M187: 454.67 | N187: 14.85 | O187: 26.86 | P187: 0.19 | Q187: 0.32 | R187: 353.16 | S187: 229.07 | T187: 70.47 | U187: 2.24
B188: ОБЕД
B189: 688 | C189: Макароны отварные | D189: 150 | E189: 200 | F189: 5.52 | G189: 7.36 | H189: 4.52 | I189: 6.02 | J189: 26.45 | K189: 35.26 | L189: 168.45 | M189: 224.6 | N189: 0.08 | O189: 0 | P189: 28 | Q189: 0.14 | R189: 6.48 | S189: 49.56 | T189: 28.16 | U189: 1.48
B190: 536 | C190: Сосиски, сардельки | D190: 80 | E190: 100 | F190: 8.32 | G190: 10.4 | H190: 16 | I190: 20 | J190: 16.96 | K190: 21.2 | L190: 179.2 | M190: 224 | N190: 0.04 | O190: 0 | P190: 0 | Q190: 0.05 | R190: 24 | S190: 159 | T190: 20 | U190: 1.8
B191: 247 | C191: Кисель (вит С) | D191: 200 | E191: 200 | F191: 1.36 | G191: 1.36 | H191: 0 | I191: 0 | J191: 29.02 | K191: 29.02 | L191: 116.19 | M191: 116.19 | N191: 0 | O191: 0 | P191: 0 | Q191: 0 | R191: 0.68 | S191: 0 | T191: 0 | U191: 0.1
C192: Хлеб пш., рж. | D192: 30 | E192: 50 | F192: 30 | G192: 50 | H192: 2.28 | I192: 3.8 | J192: 70.5 | K192: 117.5 | L192: 0.24 | M192: 0.4 | N192: 14.76 | O192: 24.6 | P192: 0 | Q192: 0 | R192: 10 | S192: 32.5 | T192: 7 | U192: 0.5
B193: ИТОГО | F193: 35.85 | G193: 48.62 | H193: 31.61 | I193: 42.29 | J193: 147.61 | K193: 199.18 | L193: 840.46 | M193: 1076.77 | N193: 0.65 | O193: 9.82 | P193: 3.94 | Q193: 11.12 | R193: 406.63 | S193: 653.17 | T193: 208.7 | U193: 10.99
B194: ИТОГО ВСЕГО | F194: 76.71 | G194: 108.32 | H194: 52.65 | I194: 66.38 | J194: 268.91 | K194: 372.42 | L194: 1255.95 | M194: 1531.44 | N194: 15.5 | O194: 36.68 | P194: 4.13 | Q194: 11.44 | R194: 759.79 | S194: 882.24 | T194: 279.17 | U194: 13.23
B196: Номер техно-логи-ческой карты | C196: Наименование блюда | D196: Выход блюд | F196: Пищевые вещества | N196: Витамины (мг) | R196: Минеральные вещества (мг)
C197: 12 день6 | D197: 7–11 лет | E197: 12–16 лет | F197: Белки | H197: Жиры | J197: Углеводы | L197: ККАЛ | N197: В1 | O197: С | P197: А | Q197: Е | R197: Са | S197: Р | T197: Мg | U197: Fe
F198: 7–11 лет | G198: 12-16 лет | H198: 7–11 лет | I198: 12-16 лет | J198: 7–11 лет | K198: 12-16 лет | L198: 7–11 лет | M198: 12-16 лет
B200: ОБЕД
B201: 208 | C201: Суп картофельный с макаронными изделиями на кур. бульоне | D201: 250 | E201: 300 | F201: 3.69 | G201: 4.43 | H201: 2.86 | I201: 3.43 | J201: 17.14 | K201: 20.57 | L201: 110.75 | M201: 132.9 | N201: 35.7 | O201: 1.65 | P201: 0.2 | Q201: 41.3 | R201: 193.35 | S201: 61.34 | T201: 2.17 | U201: 35.7
C202: Хлеб пш., рж. | D202: 30 | E202: 50 | F202: 30 | G202: 50 | H202: 2.28 | I202: 3.8 | J202: 70.5 | K202: 117.5 | L202: 0.24 | M202: 0.4 | N202: 14.76 | O202: 24.6 | P202: 0 | Q202: 0 | R202: 10 | S202: 32.5 | T202: 7 | U202: 0.5
B203: 255 | C203: Компот из сухофруктов (вит С) | D203: 200 | E203: 200 | F203: 0.56 | G203: 0.56 | H203: 0 | I203: 0 | J203: 27.89 | K203: 27.89 | L203: 113.79 | M203: 113.79 | N203: 0.18 | O203: 0 | P203: 1 | Q203: 1.4 | R203: 35 | S203: 35 | T203: 47 | U203: 3.9
B204: ИТОГО | F204: 27.54 | G204: 38.03 | H204: 30.73 | I204: 40.96 | J204: 134.71 | K204: 188.56 | L204: 738.3 | M204: 965.64 | N204: 57.36 | O204: 3.9 | P204: 1.78 | Q204: 396.29 | R204: 763.86 | S204: 425.66 | T204: 53.12 | U204: 61.08
B205: ИТОГО ВСЕГО | F205: 72.11 | G205: 105.84 | H205: 61.37 | I205: 75.13 | J205: 325.62 | K205: 435.07 | L205: 1733.7 | M205: 2020.69 | N205: 57.66 | O205: 6.98 | P205: 2.13 | Q205: 396.89 | R205: 1115.6 | S205: 882.48 | T205: 130.27 | U205: 222.79

Sheet меню осен 25
C1: Утверждаю:
C2: Директор МБОУ "Чулпановская СОШ"
C3: _________А.М.Шаяхметов
B4: Двухнедельное меню для обучающихся 1-4 классов на осенний период 2025-2026 уч.г.
B5: 1 день
A7: № | B7: Наименование блюд | C7: Выход | D7: Белки | E7: Жиры | F7: Углеводы | G7: Ккал. | H7: № /р
A8: 1 | B8: ФРУКТЫ (В АССОРТИМЕНТЕ) | C8: 100 | D8: 0.40 | E8: 0.40 | F8: 9.80 | G8: 47.00 | H8: б/н
A9: 2 | B9: ПЛОВ ИЗ ПТИЦЫ (ГРУДКА КУРИНАЯ) | C9: 150/50 | D9: 12.93 | E9: 25.26 | F9: 26.26 | G9: 385.63 | H9: 311
A10: 3 | B10: ЧАЙ С САХАРОМ И ЛИМОНОМ | C10: 200/15/7 | D10: 0.05 | E10: 0.01 | F10: 6.98 | G10: 29.40 | H10: 431
A11: 4 | B11: ХЛЕБ ПШЕНИЧНЫЙ, РЖАНОЙ | C11: 30/20 | D11: 3.82 | E11: 0.37 | F11: 23.53 | G11: 111.84 | H11: б/н
B12: Итого за прием пищи: | C12: 572 | D12: =SUM(D8:D11) -> 17.2 | E12: =SUM(E8:E11) -> 26.04 | F12: =SUM(F8:F11) -> 66.57 | G12: =SUM(G8:G11) -> 573.87 | I12: 1
B13: 2 день
A15: № | B15: Наименование блюд | C15: Выход | D15: Белки | E15: Жиры | F15: Углеводы | G15: Ккал. | H15: № /р
A16: 1 | B16: САЛАТ ИЗ СВЕЖЕЙ МОРКОВИ | C16: 60 | D16: 0.73 | E16: 0.06 | F16: 6.75 | G16: 31.17 | H16: б\н
A17: 2 | B17: БИТОЧКИ РУБЛЕННЫЕ ИЗ ПТИЦЫ | C17: 80 | D17: 11.55 | E17: 13.03 | F17: 7.32 | G17: 192.43 | H17: 306
A18: 3 | B18: КАША ПЕРЛОВАЯ РАССЫПЧАТАЯ | C18: 150/5 | D18: 3.60 | E18: 4.60 | F18: 37.70 | G18: 206.00 | H18: 323
A19: 4 | B19: КОМПОТ ИЗ СУХОФРУКТОВ С ВИТАМИНОМ "С" | C19: 200 | D19: 0.00 | E19: 0.00 | F19: 23.23 | G19: 92.89 | H19: 402
A20: 5 | B20: ХЛЕБ ПШЕНИЧНЫЙ, РЖАНОЙ | C20: 30/20 | D20: 3.61 | E20: 0.37 | F20: 23.53 | G20: 111.84 | H20: б\н
B21: Итого за прием пищи: | C21: 545 | D21: =SUM(D16:D20) -> 19.49 | E21: =SUM(E16:E20) -> 18.06 | F21: =SUM(F16:F20) -> 98.53 | G21: =SUM(G16:G20) -> 634.33
B22: 3 день
B24: Наименование блюд | C24: Выход | D24: Белки | E24: Жиры | F24: Углеводы | G24: Ккал. | H24: № /р
A25: № | B25: САЛАТ ИЗ БЕЛОКОЧАННОЙ КАПУСТЫ С РАСТИТЕЛЬНЫМ МАСЛОМ | C25: 60 | D25: 0.90 | E25: 2.97 | F25: 5.45 | G25: 52.65 | H25: 45
A26: 1 | B26: ГУЛЯШ ИЗ ГОВЯДИНЫ | C26: 40/40 | D26: 11.89 | E26: 12.96 | F26: 2.75 | G26: 175.09 | H26: 259
A27: 2 | B27: МАКАРОННЫЕ ИЗДЕЛИЯ ОТВАРНЫЕ С МАСЛОМ СЛИВОЧНЫМ | C27: 200 | D27: 2.77 | E27: 4.33 | F27: 17.56 | G27: 120.24 | H27: 202
A28: 3 | B28: КОФЕЙНЫЙ НАПИТОК С МОЛОКОМ | C28: 00 | D28: 2.21 | E28: 1.21 | F28: 25.86 | G28: 123.47
A29: 4 | B29: ХЛЕБ ПШЕНИЧНЫЙ, РЖАНОЙ | C29: 30/20 | D29: 3.61 | E29: 0.37 | F29: 23.53 | G29: 111.84 | H29: б/н
A30: 5 | B30: Итого за прием пищи: | C30: 500 | D30: =SUM(D25:D29) -> 21.38 | E30: =SUM(E25:E29) -> 21.84 | F30: =SUM(F25:F29) -> 75.15 | G30: =SUM(G25:G29) -> 583.29
B31: 4 день
A33: № | B33: Наименование блюд | C33: Выход | D33: Белки | E33: Жиры | F33: Углеводы | G33: Ккал. | H33: № /р
A34: 1 | B34: САЛАТ ИЗ СВЕКЛЫ С ЗЕЛЕНЫМ ГОРОШКОМ И ЯБЛОКОМ | C34: 60 | D34: 0.98 | E34: 2.44 | F34: 4.78 | G34: 45.09 | H34: 34
A35: 2 | B35: ЖАРКОЕ ПО-ДОМАШНЕМУ ИЗ ПТИЦЫ (ГРУДКА КУРИНАЯ) | C35: 150/40 | D35: 12.58 | E35: 14.86 | F35: 18.43 | G35: 241.08 | H35: 258
A36: 3 | B36: КОМПОТ ИЗ СМЕСИ СУХОФРУКТАМИ С ВИТАМИНОМ С | C36: 200 | D36: 0.00 | E36: 0.00 | F36: 23.23 | G36: 92.89 | H36: 402
A37: 4 | B37: ХЛЕБ ПШЕНИЧНЫЙ, РЖАНОЙ | C37: 30/20 | D37: 3.61 | E37: 0.37 | F37: 23.53 | G37: 111.84 | H37: б/н
B38: Итого за прием пищи: | C38: 500 | D38: =SUM(D34:D37) -> 17.17 | E38: =SUM(E34:E37) -> 17.67 | F38: =SUM(F34:F37) -> 69.97 | G38: =SUM(G34:G37) -> 490.90
B39: 5 день
A41: № | B41: Наименование блюд | C41: Выход | D41: Белки | E41: Жиры | F41: Углеводы | G41: Ккал. | H41: № /р
A42: 1 | B42: ВИНЕГРЕТ ОВОЩНОЙ | C42: 60 | D42: 1.15 | E42: 7.62 | F42: 5.46 | G42: 95.45 | H42: 51
A43: 2 | B43: ПЮРЕ КАРТОФЕЛЬНОЕ С МАСЛОМ СЛИВОЧНЫМ | C43: 150/5 | D43: 7.36 | E43: 8.83 | F43: 21.69 | G43: 162.10 | H43: 335
A44: 3 | B44: РЫБА ПРИПУЩЕННАЯ С ОВОЩАМИ | C44: 60/30 | D44: 5.32 | E44: 1.60 | F44: 2.96 | G44: 51.67 | H44: 244
A45: 4 | B45: ЧАЙ С САХАРОМ | C45: 200/15 | D45: 0.33 | E45: 0.00 | F45: 15.21 | G45: 62.14 | H45: 430
A46: 5 | B46: ХЛЕБ ПШЕНИЧНЫЙ, РЖАНОЙ | C46: 30/20 | D46: 3.61 | E46: 0.37 | F46: 23.53 | G46: 111.84 | H46: б/н
B47: Итого за прием пищи: | C47: 570 | D47: =SUM(D42:D46) -> 17.77 | E47: =SUM(E42:E46) -> 18.42 | F47: =SUM(F42:F46) -> 68.85 | G47: =SUM(G42:G46) -> 483.2
B48: 6 день
A50: № | B50: Наименование блюд | C50: Выход | D50: Белки | E50: Жиры | F50: Углеводы | G50: Ккал. | H50: № /р
A51: 1 | B51: КОНДИТЕРСКОЕ ИЗДЕЛИЕ (ПЕЧЕНЬЕ) | C51: 30 | D51: 2.25 | E51: 2.94 | F51: 22.32 | G51: 125.10 | H51: б/н
A52: 2 | B52: СУП С МАКАРОННЫМИ ИЗДЕЛИЯМИ И КАРТОФЕЛЕМ | C52: 250 | D52: 12.67 | E52: 12.81 | F52: 28.22 | G52: 108.12 | H52: 112
A53: 3 | B53: СОКИ ФРУКТОВО-ЯГОДНЫЕ | C53: 200 | D53: 0.97 | E53: 0.19 | F53: 19.59 | G53: 83.42 | H53: 389
A54: 4 | B54: ХЛЕБ ПШЕНИЧНО- РЖАНОЙ | C54: 30/20 | D54: 3.61 | E54: 0.37 | F54: 23.53 | G54: 111.84 | H54: б/н
B55: Итого за прием пищи: | C55: 550 | D55: =SUM(D51:D54) -> 19.5 | E55: =SUM(E51:E54) -> 16.31 | F55: =SUM(F51:F54) -> 93.66 | G55: =SUM(G51:G54) -> 428.48
B56: 7 день
A58: № | B58: Наименование блюд | C58: Выход | D58: Белки | E58: Жиры | F58: Углеводы | G58: Ккал. | H58: № /р
A59: 1 | B59: САЛАТ ИЗ СВЕЖЕЙ БЕЛОКОЧАННОЙ КАПУСТЫ С РАСТИТЕЛЬНЫМ МАСЛОМ | C59: 60 | D59: 0.90 | E59: 2.97 | F59: 5.45 | G59: 52.65 | H59: 45
A60: 2 | B60: ПЛОВ ИЗ ПТИЦЫ ( ГРУДКА КУРИНАЯ) | C60: 150/40 | D60: 17.90 | E60: 13.70 | F60: 27.70 | G60: 306.00 | H60: 311
A61: 3 | B61: КОМПОТ ИЗ СМЕСИ СУХОФРУКТОВ С ВИТАМИНОМ С | C61: 200 | D61: 0.00 | E61: 0.00 | F61: 9.68 | G61: 38.70 | H61: 402
A62: 4 | B62: ХЛЕБ ПШЕНИЧНЫЙ, РЖАНОЙ | C62: 30/20 | D62: 3.61 | E62: 0.38 | F62: 23.53 | G62: 111.84 | H62: б/н
B63: Итого за прием пищи: | C63: 520 | D63: =SUM(D59:D62) -> 22.41 | E63: =SUM(E59:E62) -> 17.05 | F63: =SUM(F59:F62) -> 66.36 | G63: =SUM(G59:G62) -> 509.19
B64: 8 день
A66: № | B66: Наименование блюд | C66: Выход | D66: Белки | E66: Жиры | F66: Углеводы | G66: Ккал. | H66: № /р
A67: 1 | B67: САЛАТ ИЗ ВАРЕНОЙ СВЕКЛЫ С ЗЕЛЕНЫМ ГОРОШКОМ | C67: 60 | D67: 0.98 | E67: 2.44 | F67: 4.78 | G67: 45.09 | H67: 34
A68: 2 | B68: ЖАРКОЕ ПО-ДОМАШНЕМУ ИЗ ПТИЦЫ (ГРУДКА КУРИНАЯ) | C68: 150/50 | D68: 13.01 | E68: 15.21 | F68: 16.98 | G68: 230.96 | H68: 258
A69: 3 | B69: ЧАЙ С САХАРОМ | C69: 200/15 | D69: 0.39 | E69: 0.00 | F69: 15.33 | G69: 62.86 | H69: 431
A70: 4 | B70: ХЛЕБ ПШЕНИЧНЫЙ, РЖАНОЙ | C70: 30/20 | D70: 3.61 | E70: 0.37 | F70: 23.53 | G70: 111.84 | H70: б/н
B71: Итого за прием пищи: | C71: 525 | D71: =SUM(D67:D70) -> 17.99 | E71: =SUM(E67:E70) -> 18.02 | F71: =SUM(F67:F70) -> 60.62 | G71: =SUM(G67:G70) -> 450.75
B72: 9 день
A74: № | B74: Наименование блюд | C74: Выход | D74: Белки | E74: Жиры | F74: Углеводы | G74: Ккал. | H74: № /р
A75: 1 | B75: НАРЕЗКА НОВОГО УРОЖАЯ (ОГУРЦЫ СВЕЖИЕ) | C75: 60 | D75: 0.48 | E75: 0.06 | F75: 1.50 | G75: 8.40 | H75: б/н
A76: 2 | B76: ТЕФТЕЛИ ИЗ ГОВЯДИНЫ В СОУСЕ | C76: 60/30 | D76: 8.14 | E76: 11.86 | F76: 8.20 | G76: 171.96 | H76: 283
A77: 3 | B77: МАКАРОННЫЕ ИЗДЕЛИЯ ОТВАРНЫЕ С МАСЛОМ СЛИВОЧНЫМ | C77: 150/5 | D77: 5.64 | E77: 4.67 | F77: 35.94 | G77: 208.41 | H77: 202
A78: 4 | B78: КОФЕЙНЫЙ НАПИТОК С МОЛОКОМ | C78: 200 | D78: 2.21 | E78: 1.21 | F78: 25.86 | G78: 123.47 | H78: 431
A79: 5 | B79: ХЛЕБ ПШЕНИЧНЫЙ, РЖАНОЙ | C79: 30/20 | D79: 3.61 | E79: 0.37 | F79: 23.53 | G79: 111.84 | H79: б/н
B80: Итого за прием пищи: | C80: 555 | D80: =SUM(D75:D79) -> 20.08 | E80: 18.17 | F80: 95.03 | G80: 624.08
B81: 10 день
A83: № | B83: Наименование блюд | C83: Выход | D83: Белки | E83: Жиры | F83: Углеводы | G83: Ккал. | H83: № /р
A84: 1 | B84: ФРУКТЫ (В АССОРТИМЕНТЕ) | C84: 100 | D84: 0.40 | E84: 0.40 | F84: 9.80 | G84: 47.00 | H84: б/н
A85: 2 | B85: ГУЛЯШ ИЗ ПТИЦЫ (ГРУДКА КУРИНАЯ) | C85: 50/50 | D85: 8.63 | E85: 12.06 | F85: 3.43 | G85: 156.78 | H85: 259
A86: 3 | B86: ПЮРЕ ГОРОХОВОЕ СО СЛИВОЧНЫМ МАСЛОМ | C86: 150/5 | D86: 16.18 | E86: 5.14 | F86: 33.82 | G86: 246.24 | H86: 270
A87: 4 | B87: КОМПОТ ИЗ СВЕЖИХ ЯБЛОК | C87: 200 | D87: 0.08 | E87: 0.08 | F87: 11.58 | G87: 47.82 | H87: 402
A88: 5 | B88: ХЛЕБ ПШЕНИЧНЫЙ, РЖАНОЙ | C88: 30/20 | D88: 3.61 | E88: 0.37 | F88: 23.53 | G88: 111.84 | H88: б/н
B89: Итого за прием пищи: | C89: 595 | D89: =SUM(D84:D88) -> 28.9 | E89: 18.05 | F89: 82.16 | G89: 609.68
B90: 11 день
A92: № | B92: Наименование блюд | C92: Выход | D92: Белки | E92: Жиры | F92: Углеводы | G92: Ккал. | H92: № /р
A93: 1 | B93: ВИНЕГРЕТ ОВОЩНОЙ | C93: 60 | D93: 0.82 | E93: 6.10 | F93: 4.47 | G93: 76.44 | H93: 51
A94: 2 | B94: КОТЛЕТЫ ИЗ ГОВЯДИНЫ С СОУСОМ | C94: 60/30 | D94: 9.58 | E94: 10.45 | F94: 8.84 | G94: 167.48 | H94: 272
A95: 3 | B95: КАША ГРЕЧНЕВАЯ РАССЫПЧАТАЯ С МАСЛОМ СЛИВОЧНЫМ | C95: 150/5 | D95: 8.21 | E95: 6.15 | F95: 37.09 | G95: 236.15 | H95: 171
A96: 4 | B96: ЧАЙ С САХАРОМ | C96: 200/15 | D96: 0.22 | E96: 0.11 | F96: 16.13 | G96: 64.50 | H96: б/н
A97: 5 | B97: КЕФИР 2,5% | C97: 150 | D97: 4.50 | E97: 0.15 | F97: 6.00 | G97: 46.50 | H97: б/н
A98: 6 | B98: ХЛЕБ ПШЕНИЧНЫЙ, РЖАНОЙ | C98: 30/20 | D98: 3.61 | E98: 0.37 | F98: 23.53 | G98: 111.84 | H98: б/н
B99: Итого за прием пищи: | C99: 720 | D99: =SUM(D93:D98) -> 26.94 | E99: =SUM(E93:E98) -> 23.33 | F99: =SUM(F93:F98) -> 96.06 | G99: =SUM(G93:G98) -> 702.91
B100: 12 день
I101: 1
A102: № | B102: Наименование блюд | C102: Выход | D102: Белки | E102: Жиры | F102: Углеводы | G102: Ккал. | H102: № /р
A103: 1 | B103: ЩИ ИЗ СВЕЖЕЙ КАПУСТЫ СО СМЕТАНОЙ | C103: 250/5 | D103: 10.35 | E103: 13.80 | F103: 15.81 | G103: 145.90 | H103: 84
A104: 2 | B104: КОНДИТЕРСКОЕ ИЗДЕЛИЕ (ПЕЧЕНЬЕ, ВАФЛИ) | C104: 30 | D104: 2.25 | E104: 2.94 | F104: 22.32 | G104: 125.10 | H104: б/н
A105: 3 | B105: СОКИ ФРУКТОВО- ЯГОДНЫЕ | C105: 200 | D105: 0.97 | E105: 0.19 | F105: 19.59 | G105: 83.42 | H105: б/н
A106: 4 | B106: ХЛЕБ ПШЕНИЧНЫЙ, РЖАНОЙ | C106: 30/20 | D106: 3.61 | E106: 0.37 | F106: 23.53 | G106: 142.09 | H106: б/н
B107: Итого за прием пищи: | C107: 535 | D107: =SUM(D103:D106) -> 17.18 | E107: =SUM(E103:E106) -> 17.3 | F107: =SUM(F103:F106) -> 81.25 | G107: =SUM(G103:G106) -> 496.51
A110: №
A111: 1
A112: 2
A113: 3
A114: 4
A115: 5
A116: 6
A122: №
A123: 1
A124: 2
A125: 3
A126: 4

Sheet меню каж.д дер. с овз (hidden)
A1: Согласованно: | C1: Утверждаю:
C2: ________________Махмутов Х.Х.
B4: Меню ____________________2025 г.
B5: 1 день
B6: 1-4 класс
A7: № | B7: Наименование блюд | C7: Выход | D7: Белки | E7: Жиры | F7: Углеводы | G7: Ккал. | H7: №/реп.
A8: 1 | B8: ФРУКТЫ (В АССОРТИМЕНТЕ) | C8: 100 | D8: 0.40 | E8: 0.40 | F8: 9.80 | G8: 47.00
A9: 2 | B9: ПЛОВ ИЗ ПТИЦЫ (ГРУДКА КУРИНАЯ) | C9: 150/40 | D9: 10.90 | E9: 15.42 | F9: 38.87 | G9: 337.95
A10: 3 | B10: ЧАЙ С САХАРОМ И ЛИМОНОМ | C10: 200/15/10 | D10: 0.09 | E10: 0.01 | F10: 14.81 | G10: 61.35
A11: 4 | B11: КОНДИТЕРСКОЕ ИЗДЕЛИЕ В АССОРТИМЕНТЕ (ПРЯНИКИ, ПЕЧЕНЬЕ, ВАФЛИ) | C11: 20 | D11: 1.18 | E11: 0.94 | F11: 15.00 | G11: 73.20
A12: 5 | B12: ХЛЕБ ПШЕНИЧНЫЙ, РЖАНОЙ | C12: 30/20 | D12: 3.61 | E12: 0.37 | F12: 23.53 | G12: 111.84
B13: Итого за прием пищи: | C13: 585 | D13: =SUM(D8:D12) -> 16.18 | E13: 17.14 | F13: 102.01 | G13: 631.34
B14: Бюджет
A15: № | B15: Наименование блюд | C15: Выход | D15: Белки | E15: Жиры | F15: Углеводы | G15: Ккал. | H15: №/реп.
A16: 1 | B16: МАКАРОННЫЕ ИЗДЕЛИЯ ОТВАРНЫЕ С МАСЛОМ СЛИВОЧНЫМ | C16: 100/3 | D16: 3.75 | E16: 2.84 | F16: 23.96 | G16: 136.52
A17: 2 | B17: ЧАЙ ЧЕРНЫЙ С САХАРОМ | C17: 200/7 | D17: 0.00 | E17: 0.00 | F17: 6.78 | G17: 27.09
A18: 3 | B18: ХЛЕБ ПШЕНИЧНЫЙ, РЖАНОЙ | C18: 30/20 | D18: 3.82 | E18: 0.31 | F18: 25.09 | G18: 118.41
B19: Итого за прием пищи: | C19: 353 | D19: =SUM(D16:D18) -> 7.57 | E19: 3.15 | F19: 55.83 | G19: 282.02
B20: Родительский взнос
A21: № | B21: Наименование блюд | C21: Выход | D21: Белки | E21: Жиры | F21: Углеводы | G21: Ккал. | H21: №/реп.
A22: 1 | B22: САЛАТ ИЗ СВЕЖЕЙ БЕЛОКОЧАННОЙ КАПУСТЫ С МАСЛОМ РАСТИТЕЛЬНЫМ | C22: 60 | D22: 0.90 | E22: 2.96 | F22: 5.46 | G22: 52.66
A23: 2 | B23: КАША ГРЕЧНЕВАЯ РАССЫПЧАТАЯ С МАСЛОМ СЛИВОЧНЫМ | C23: 150/5 | D23: 3.60 | E23: 4.60 | F23: 37.70 | G23: 206.00
A24: 3 | B24: ТЕФТЕЛИ ИЗ ГОВЯДИНЫ В СОУСЕ | C24: 60/30 | D24: 8.53 | E24: 14.01 | F24: 10.57 | G24: 202.69
A25: 4 | B25: КОМПОТ ИЗ СУХОФРУКТОВ С ВИТАМИНОМ С | C25: 200 | D25: 0.00 | E25: 0.00 | F25: 9.68 | G25: 38.70
A26: 5 | B26: ХЛЕБ ПШЕНИЧНЫЙ, РЖАНОЙ | C26: 20/20 | D26: 3.05 | E26: 0.25 | F26: 20.07 | G26: 94.73
B27: Итого за прием пищи: | C27: 545 | D27: =SUM(D22:D26) -> 16.08 | E27: 21.82 | F27: 83.48 | G27: 594.78
B28: Льготники
A29: № | B29: Наименование блюд | C29: Выход | D29: Белки | E29: Жиры | F29: Углеводы | G29: Ккал. | H29: №/реп.
A30: 1 | B30: САЛАТ ИЗ СВЕЖЕЙ БЕЛОКОЧАННОЙ КАПУСТЫ С МАСЛОМ РАСТИТЕЛЬНЫМ | C30: 60 | D30: 0.90 | E30: 2.96 | F30: 5.46 | G30: 52.66
A31: 2 | B31: КАША ГРЕЧНЕВАЯ РАССЫПЧАТАЯ С МАСЛОМ СЛИВОЧНЫМ | C31: 150/5 | D31: 3.60 | E31: 4.60 | F31: 37.70 | G31: 206.00
A32: 3 | B32: ТЕФТЕЛИ ИЗ ГОВЯДИНЫ В СОУСЕ | C32: 60/30 | D32: 8.53 | E32: 14.01 | F32: 10.57 | G32: 202.69
A33: 4 | B33: КОМПОТ ИЗ СУХОФРУКТОВ С ВИТАМИНОМ С | C33: 200 | D33: 0.00 | E33: 0.00 | F33: 9.68 | G33: 38.70
A34: 5 | B34: ХЛЕБ ПШЕНИЧНЫЙ, РЖАНОЙ | C34: 20/20 | D34: 3.05 | E34: 0.25 | F34: 20.07 | G34: 94.73
B35: Итого за прием пищи: | C35: 545 | D35: =SUM(D30:D34) -> 16.08 | E35: 21.82 | F35: 83.48 | G35: 594.78
B36: ОВЗ
A37: № | B37: Наименование блюд | C37: Выход | D37: Белки | E37: Жиры | F37: Углеводы | G37: Ккал. | H37: №/реп.
A38: 1 | B38: СУП С МАКАРОННЫМИ ИЗДЕЛИЯМИ С ФРИКАДЕЛЬКАМИ | C38: 250/25 | D38: 8.20 | E38: 7.73 | F38: 15.35 | G38: 162.55
A39: 2 | B39: СОК НАТУРАЛЬНЫЙ В АССОРТИМЕНТЕ | C39: 200 | D39: 0.60 | E39: 0.00 | F39: 33.00 | G39: 136.00
A40: 3 | B40: ХЛЕБ ПШЕНИЧНЫЙ,РЖАНОЙ | C40: 20/20 | D40: 3.05 | E40: 0.25 | F40: 20.07 | G40: 94.73
B41: Итого за прием пищи: | D41: =D38+D39+D40 -> 11.85 | E41: =E38+E39+E40 -> 7.98 | F41: =F38+F39+F40 -> 68.42 | G41: =G38+G39+G40 -> 393.28
A43: Согласованно: | C43: Утверждаю:
C44: ________________Махмутов Х.Х.
B46: Меню ____________________2025 г.
B47: 2 день
B48: 1-4 класс
A49: № | B49: Наименование блюд | C49: Выход | D49: Белки | E49: Жиры | F49: Углеводы | G49: Ккал. | H49: №/реп.
A50: 1 | B50: САЛАТ ИЗ СВЕЖЕЙ МОРКОВИ | C50: 60 | D50: 0.97 | E50: 0.07 | F50: 9.01 | G50: 41.55
A51: 2 | B51: МАКАРОННЫЕ ИЗДЕЛИЯ ОТВАРНЫЕ С МАСЛОМ СЛИВОЧНЫМ | C51: 150/5 | D51: 5.62 | E51: 4.02 | F51: 35.93 | G51: 202.60
A52: 3 | B52: ТЕФТЕЛИ ИЗ ГОВЯДИНЫ С СОУСОМ | C52: 60/30 | D52: 8.48 | E52: 13.63 | F52: 10.12 | G52: 197.24
A53: 4 | B53: КОМПОТ ИЗ СУХОФРУКТОВ С ВИТАМИНОМ "С" | C53: 200/8/10 | D53: 0.00 | E53: 0.00 | F53: 9.68 | G53: 38.70
A54: 5 | B54: ХЛЕБ ПШЕНИЧНЫЙ, РЖАНОЙ | C54: 30/20 | D54: 3.61 | E54: 0.37 | F54: 23.53 | G54: 111.84
B55: Итого за прием пищи: | C55: 593 | D55: =SUM(D50:D54) -> 18.68 | E55: =SUM(E50:E54) -> 18.09 | F55: 88.27 | G55: 591.93
B57: Бюджет
A58: № | B58: Наименование блюд | C58: Выход | D58: Белки | E58: Жиры | F58: Углеводы | G58: Ккал. | H58: №/реп.
A59: 1 | B59: КАША ГРЕЧНЕВАЯ С МАСЛОМ СЛИВОЧНЫМ | C59: 100/3 | D59: 2.34 | E59: 3.45 | F59: 15.16 | G59: 101.28
A60: 2 | B60: ЧАЙ ЧЕРНЫЙ С САХАРОМ | C60: 200/7 | D60: 0.00 | E60: 0.00 | F60: 9.39 | G60: 37.54
A61: 3 | B61: ХЛЕБ ПШЕНИЧНЫЙ, РЖАНОЙ | C61: 30/20 | D61: 3.82 | E61: 0.31 | F61: 25.09 | G61: 118.41
B62: Итого за прием пищи: | C62: 353 | D62: =SUM(D59:D61) -> 6.16 | E62: 3.76 | F62: 49.64 | G62: 257.23
B64: Родительский взнос
A65: № | B65: Наименование блюд | C65: Выход | D65: Белки | E65: Жиры | F65: Углеводы | G65: Ккал. | H65: №/реп.
A66: 1 | B66: ВИНЕГРЕТ ОВОЩНОЙ | C66: 60 | D66: 0.81 | E66: 6.09 | F66: 4.32 | G66: 75.98
A67: 2 | B67: КАРТОФЕЛЬНОЕ ПЮРЕ С МАСЛОМ СЛИВОЧНЫМ | C67: 150/5 | D67: 3.09 | E67: 5.39 | F67: 20.25 | G67: 140.65
A68: 3 | B68: КОТЛЕТЫ (БИТОЧКИ) РЫБНЫЕ (МИНТАЙ) С СОУСОМ | C68: 60/30 | D68: 6.55 | E68: 6.20 | F68: 9.90 | G68: 120.89
A69: 4 | B69: ЧАЙ С САХАРОМ С ЛИМОНОМ | C69: 200/15/7 | D69: 0.06 | E69: 0.01 | F69: 14.72 | G69: 60.36
A70: 5 | B70: ХЛЕБ ПШЕНИЧНЫЙ, РЖАНОЙ | C70: 20/20 | D70: 3.05 | E70: 0.25 | F70: 20.07 | G70: 94.73
B71: Итого за прием пищи: | C71: 567 | D71: =SUM(D66:D70) -> 13.56 | E71: 17.94 | F71: 69.26 | G71: 492.61
B73: Льготники
A74: № | B74: Наименование блюд | C74: Выход | D74: Белки | E74: Жиры | F74: Углеводы | G74: Ккал. | H74: №/реп.
A75: 1 | B75: ВИНЕГРЕТ ОВОЩНОЙ | C75: 60 | D75: 0.81 | E75: 6.09 | F75: 4.32 | G75: 75.98
A76: 2 | B76: КАРТОФЕЛЬНОЕ ПЮРЕ С МАСЛОМ СЛИВОЧНЫМ | C76: 150/5 | D76: 3.09 | E76: 5.39 | F76: 20.25 | G76: 140.65
A77: 3 | B77: КОТЛЕТЫ (БИТОЧКИ) РЫБНЫЕ (МИНТАЙ) С СОУСОМ | C77: 60/30 | D77: 6.55 | E77: 6.20 | F77: 9.90 | G77: 120.89
A78: 4 | B78: ЧАЙ С САХАРОМ С ЛИМОНОМ | C78: 200/15/7 | D78: 0.06 | E78: 0.01 | F78: 14.72 | G78: 60.36
A79: 5 | B79: ХЛЕБ ПШЕНИЧНЫЙ, РЖАНОЙ | C79: 20/20 | D79: 3.05 | E79: 0.25 | F79: 20.07 | G79: 94.73
B80: Итого за прием пищи: | C80: 567 | D80: =SUM(D75:D79) -> 13.56 | E80: 17.94 | F80: 69.26 | G80: 492.61
B82: ОВЗ
A83: № | B83: Наименование блюд | C83: Выход | D83: Белки | E83: Жиры | F83: Углеводы | G83: Ккал. | H83: №/реп.
A84: 1 | B84: СУП ГОРОХОВЫЙ С КУРИНЫМИ ГРУДКАМИ | C84: 250/25 | D84: 10.82 | E84: 10.56 | F84: 18.71 | G84: 213.29
A85: 2 | B85: КОМПОТ ИЗ СМЕСИ СУХОФРУКТОВ С ВИТАМИНОМ С | C85: 200 | D85: 0.00 | E85: 0.00 | F85: 9.68 | G85: 38.70
A86: 3 | B86: ХЛЕБ РЖАНО-ПШЕНИЧНЫЙ | C86: 20/20 | D86: 3.05 | E86: 0.25 | F86: 20.07 | G86: 94.73
B87: Итого за прием пищи: | D87: 13.87 | E87: =E84+E85+E86 -> 10.81 | F87: =F84+F85+F86 -> 48.46 | G87: =G84+G85+G86 -> 346.72
A90: Согласованно: | C90: Утверждаю:
C91: ________________Махмутов Х.Х.
B93: Меню ____________________2025 г.
B94: 3 день
B95: 1-4 класс | H95: №/реп.
A96: № | B96: Наименование блюд | C96: Выход | D96: Белки | E96: Жиры | F96: Углеводы | G96: Ккал.
A97: 1 | B97: САЛАТ ИЗ БЕЛОКОЧАННОЙ СВЕЖЕЙ КАПУСТЫ С МАСЛОМ РАСТИТЕЛЬНЫМ | C97: 60 | D97: 0.90 | E97: 2.96 | F97: 5.46 | G97: 52.66
A98: 2 | B98: РЫБА ТУШЕНАЯ (МИНТАЙ) С ОВОЩАМИ | C98: 80 | D98: 10.69 | E98: 4.61 | F98: 0.51 | G98: 86.55
A99: 3 | B99: КАША ГРЕЧНЕВАЯ РАССЫПЧАТАЯ С МАСЛОМ СЛИВОЧНЫМ | C99: 150/5 | D99: 7.18 | E99: 5.24 | F99: 32.49 | G99: 205.55
A100: 4 | B100: КОФЕЙНЫЙ НАПИТОК С МОЛОКОМ | C100: 200 | D100: 2.21 | E100: 1.21 | F100: 25.86 | G100: 123.46
A101: 5 | B101: ХЛЕБ ПШЕНИЧНЫЙ, РЖАНОЙ | C101: 30/20 | D101: 3.61 | E101: 0.37 | F101: 23.53 | G101: 111.84
B102: Итого за прием пищи: | C102: 545 | D102: =SUM(D97:D101) -> 24.59 | E102: =SUM(E97:E101) -> 14.39 | F102: 87.85 | G102: 580.06
B104: Бюджет
A105: № | B105: Наименование блюд | C105: Выход | D105: Белки | E105: Жиры | F105: Углеводы | G105: Ккал. | H105: №/реп.
A106: 1 | B106: КАША ОВСЯНАЯ МОЛОЧНАЯ С МАСЛОМ СЛИВОЧНЫМ | C106: 100/3 | D106: 4.34 | E106: 5.04 | F106: 17.61 | G106: 133.45
A107: 2 | B107: ЧАЙ ЧЕРНЫЙ С САХАРОМ | C107: 200/7 | D107: 0.00 | E107: 0.00 | F107: 9.39 | G107: 37.54
A108: 3 | B108: ХЛЕБ ПШЕНИЧНЫЙ, РЖАНОЙ | C108: 30/20 | D108: 3.82 | E108: 0.31 | F108: 25.09 | G108: 118.41
B109: Итого за прием пищи: | C109: 353 | D109: =SUM(D106:D108) -> 8.16 | E109: 5.35 | F109: 52.09 | G109: 289.4
B111: Родительский взнос
A112: № | B112: Наименование блюд | C112: Выход | D112: Белки | E112: Жиры | F112: Углеводы | G112: Ккал. | H112: №/реп.
A113: 1 | B113: САЛАТ ИЗ СВЕЖЕЙ МОРКОВИ | C113: 60 | D113: 0.73 | E113: 0.06 | F113: 6.76 | G113: 31.17
A114: 2 | B114: КАША ПЕРЛОВАЯ РАССЫПЧАТАЯ С МАСЛОМ СЛИВОЧНЫМ | C114: 150/5 | D114: 3.60 | E114: 4.60 | F114: 37.70 | G114: 206.00
A115: 3 | B115: КОТЛЕТЫ РУБЛЕНЫЕ ИЗ ПТИЦЫ С СОУСОМ | C115: 60/30 | D115: 9.50 | E115: 11.50 | F115: 13.88 | G115: 196.90
A116: 4 | B116: ЧАЙ СЛАДКИЙ | C116: 200 | D116: 0.00 | E116: 0.00 | F116: 14.52 | G116: 58.05
A117: 5 | B117: ХЛЕБ ПШЕНИЧНЫЙ, РЖАНОЙ | C117: 20/20 | D117: 3.05 | E117: 0.25 | F117: 20.07 | G117: 94.73
B118: Итого за прием пищи: | C118: 545 | D118: =SUM(D113:D117) -> 16.88 | E118: 16.41 | F118: 92.93 | G118: 586.85
B120: Льготники
A121: № | B121: Наименование блюд | C121: Выход | D121: Белки | E121: Жиры | F121: Углеводы | G121: Ккал. | H121: №/реп.
A122: 1 | B122: САЛАТ ИЗ СВЕЖЕЙ МОРКОВИ | C122: 60 | D122: 0.73 | E122: 0.06 | F122: 6.76 | G122: 31.17
A123: 2 | B123: КАША ПЕРЛОВАЯ РАССЫПЧАТАЯ С МАСЛОМ СЛИВОЧНЫМ | C123: 150/5 | D123: 3.60 | E123: 4.60 | F123: 37.70 | G123: 206.00
A124: 3 | B124: КОТЛЕТЫ РУБЛЕНЫЕ ИЗ ПТИЦЫ С СОУСОМ | C124: 60/30 | D124: 9.50 | E124: 11.50 | F124: 13.88 | G124: 196.90
A125: 4 | B125: КОМПОТ ИЗ СМЕСИ СУХОФРУКТОВ | C125: 200 | D125: 0.00 | E125: 0.00 | F125: 14.52 | G125: 58.05
A126: 5 | B126: ХЛЕБ ПШЕНИЧНЫЙ, РЖАНОЙ | C126: 20/20 | D126: 3.05 | E126: 0.25 | F126: 20.07 | G126: 94.73
B127: Итого за прием пищи: | C127: 545 | D127: =SUM(D122:D126) -> 16.88 | E127: 16.41 | F127: 92.93 | G127: 586.85
B129: ОВЗ
A130: № | B130: Наименование блюд | C130: Выход | D130: Белки | E130: Жиры | F130: Углеводы | G130: Ккал. | H130: №/реп.
A131: 1 | B131: БОРЩ ИЗ СВЕЖИЙ КАПУСТЫ С ГОВЯДИНОЙ | C131: 250/25 | D131: 7.60 | E131: 10.06 | F131: 12.40 | G131: 170.95
A132: 2 | B132: КАКАО С МОЛОКОМ | C132: 200 | D132: 3.75 | E132: 3.01 | F132: 14.74 | G132: 102.29
A133: 3 | B133: ХЛЕБ РЖАНО-ПШЕНИЧНЫЙ | C133: 20/20 | D133: 3.05 | E133: 0.25 | F133: 20.07 | G133: 94.73
B134: Итого за прием пищи: | C134: 515 | D134: =D131+D132+D133 -> 14.40 | E134: =E131+E132+E133 -> 13.32 | F134: 47.21 | G134: 367.97
A136: Согласованно: | C136: Утверждаю:
C137: ________________Махмутов Х.Х.
B139: Меню ____________________2025 г.
B140: 4 день
B141: 1-4 класс
A142: № | B142: Наименование блюд | C142: Выход | D142: Белки | E142: Жиры | F142: Углеводы | G142: Ккал. | H142: №/реп.
A143: 1 | B143: САЛАТ ИЗ ВАРЕНОЙСВЕКЛЫ С ЗЕЛЕНЫМ ГОРОШКОМ | C143: 60 | D143: 0.97 | E143: 2.43 | F143: 4.77 | G143: 45.09
A144: 2 | B144: ЖАРКОЕ ПО-ДОМАШНЕМУ ИЗ ПТИЦЫ (ГРУДКА КУРИНАЯ) | C144: 150/40 | D144: 10.57 | E144: 13.86 | F144: 18.44 | G144: 241.07
A145: 3 | B145: СОКИ ОВОЩНЫЕ, ФРУКТОВЫЕ И ЯГОДНЫЕ | C145: 200 | D145: 0.97 | E145: 0.19 | F145: 19.59 | G145: 83.42
A146: 4 | B146: ХЛЕБ ПШЕНИЧНЫЙ, РЖАНОЙ | C146: 30/20 | D146: 3.61 | E146: 0.37 | F146: 23.53 | G146: 111.84
A147: 5 | B147: КОНДИТЕРСКОЕ ИЗДЕЛИЕ В АССОРТИМЕНТЕ (ПРЯНИКИ, ПЕЧЕНЬЕ,ВАФЛИ) | C147: 25 | D147: 1.48 | E147: 1.18 | F147: 18.75 | G147: 91.50
B148: Итого за прием пищи: | C148: 525 | D148: =SUM(D143:D147) -> 17.6 | E148: =SUM(E143:E147) -> 18.03 | F148: 85.08 | G148: 572.92
B150: Бюджет
A151: № | B151: Наименование блюд | C151: Выход | D151: Белки | E151: Жиры | F151: Углеводы | G151: Ккал. | H151: №/реп.
A152: 1 | B152: КАША МАННАЯ МОЛОЧНАЯ С МАСЛОМ СЛИВОЧНЫМ | C152: 100/3 | D152: 2.97 | E152: 3.78 | F152: 14.80 | G152: 104.94
A153: 2 | B153: ЧАЙ ЧЕРНЫЙ С САХАРОМ | C153: 200/7 | D153: 0.00 | E153: 0.00 | F153: 6.78 | G153: 27.09
A154: 3 | B154: ХЛЕБ ПШЕНИЧНЫЙ, РЖАНОЙ | C154: 30/20 | D154: 3.82 | E154: 0.31 | F154: 25.09 | G154: 118.41
B155: Итого за прием пищи: | C155: 353 | D155: =SUM(D152:D154) -> 6.79 | E155: 4.09 | F155: 46.67 | G155: 250.44
B157: Родительский взнос
A158: № | B158: Наименование блюд | C158: Выход | D158: Белки | E158: Жиры | F158: Углеводы | G158: Ккал. | H158: №/реп.
A159: 1 | B159: БОРЩ ИЗ СВЕЖЕЙ КАПУСТЫ ИЗ ГОВЯДИНЫ СО СМЕТАНОЙ | C159: 250/25/10 | D159: 6.48 | E159: 10.35 | F159: 12.75 | G159: 175.07
A160: 2 | B160: КОМПОТ ИЗ СУХОФРУКТОВ С ВИТАМИНОМ С | C160: 200 | D160: 0.00 | E160: 0.00 | F160: 9.68 | G160: 38.70
A161: 3 | B161: ХЛЕБ ПШЕНИЧНЫЙ, РЖАНОЙ | C161: 20/20 | D161: 3.05 | E161: 0.25 | F161: 20.07 | G161: 94.73
A162: 4 | B162: КОНДИТЕРСКОЕ ИЗДЕЛИЕ В АССОРТИМЕНТЕ (ПЕЧЕНЬЕ, ВАФЛИ,ПРЯНИКИ) | C162: 20 | D162: 1.50 | E162: 1.96 | F162: 14.88 | G162: 83.40
A163: 5
B164: Итого за прием пищи: | C164: 545 | D164: =SUM(D159:D163) -> 11.03 | E164: 12.56 | F164: 57.38 | G164: 391.9
B166: Льготники
A167: № | B167: Наименование блюд | C167: Выход | D167: Белки | E167: Жиры | F167: Углеводы | G167: Ккал. | H167: №/реп.
A168: 1 | B168: БОРЩ ИЗ СВЕЖЕЙ КАПУСТЫ ИЗ ГОВЯДИНЫ СО СМЕТАНОЙ | C168: 250/25/10 | D168: 6.48 | E168: 10.35 | F168: 12.75 | G168: 175.07
A169: 2 | B169: КОМПОТ ИЗ СУХОФРУКТОВ С ВИТАМИНОМ С | C169: 200 | D169: 0.00 | E169: 0.00 | F169: 9.68 | G169: 38.70
A170: 3 | B170: ХЛЕБ ПШЕНИЧНЫЙ, РЖАНОЙ | C170: 20/20 | D170: 3.05 | E170: 0.25 | F170: 20.07 | G170: 94.73
A171: 4 | B171: КОНДИТЕРСКОЕ ИЗДЕЛИЕ В АССОРТИМЕНТЕ (ПЕЧЕНЬЕ, ВАФЛИ, ПРЯНИКИ) | C171: 20 | D171: 1.50 | E171: 1.96 | F171: 14.88 | G171: 83.40
A172: 5
B173: Итого за прием пищи: | C173: 545 | D173: =SUM(D168:D172) -> 11.03 | E173: 12.56 | F173: 57.38 | G173: 391.9
B175: ОВЗ
A176: № | B176: Наименование блюд | C176: Выход | D176: Белки | E176: Жиры | F176: Углеводы | G176: Ккал. | H176: №/реп.
A177: 1 | B177: СУП ДОМАШНИЙ ЛАПШИ С КУРИЦЕЙ | C177: 250/25 | D177: 7.29 | E177: 10.13 | F177: 14.40 | G177: 177.96
A178: 2 | B178: КОМПОТ ИЗ СМЕСИ СУХОФРУКТАМИ С ВИТАМИНОМ С | C178: 200 | D178: 0.00 | E178: 0.00 | F178: 9.68 | G178: 38.70
A179: 3 | B179: КОНДИТЕРСКОЕ ИЗДЕЛИЕ (ЧОКО-ПАЙ) | C179: 25 | D179: 1.50 | E179: 1.96 | F179: 14.88 | G179: 83.40
A180: 4 | B180: ХЛЕБ ПШЕНИЧНЫЙ ,РЖАНОЙ | C180: 20/20 | D180: 3.05 | E180: 0.25 | F180: 20.07 | G180: 94.73
B181: Итого за прием пищи: | C181: 540 | D181: 11.84 | E181: 12.34 | F181: 59.03 | G181: 394.79
B182: Изменение меню
A184: Согласованно: | C184: Утверждаю:
C185: ________________Махмутов Х.Х.
B187: Меню ____________________2025 г.
B188: 5 день
B189: 1-4 класс
A190: № | B190: Наименование блюд | C190: Выход | D190: Белки | E190: Жиры | F190: Углеводы | G190: Ккал. | H190: №/реп.
A191: 1 | B191: ФРУКТЫ (В АССОРТИМЕНТЕ) | C191: 100 | D191: 0.40 | E191: 0.40 | F191: 9.80 | G191: 47.00
A192: 2 | B192: ЩИ ИЗ ГОВЯДИНЫИЗ СВЕЖЕЙ КАПУСТЫ СО СМЕТАНОЙ | C192: 300/25/15 | D192: 7.62 | E192: 12.23 | F192: 10.39 | G192: 188.23
A193: 3 | B193: КОМПОТ ИЗ СУХОФРУКТОВ С ВИТАМИНОМ С | C193: 200/8/10 | D193: 0.00 | E193: 0.00 | F193: 9.68 | G193: 38.70
A194: 4 | B194: ХЛЕБ ПШЕНИЧНЫЙ, РЖАНОЙ | C194: 30/20 | D194: 3.61 | E194: 0.37 | F194: 23.60 | G194: 111.84
A195: 5
B196: Итого за прием пищи: | C196: 713 | D196: =SUM(D191:D195) -> 11.63 | E196: 13 | F196: 53.47 | G196: 385.77
B198: Бюджет
A199: № | B199: Наименование блюд | C199: Выход | D199: Белки | E199: Жиры | F199: Углеводы | G199: Ккал. | H199: №/реп.
A200: 1 | B200: КАША МОЛОЧНАЯ ИЗ РИСА И ПШЕНА С МАСЛОМ СЛИВОЧНЫМ | C200: 100/3 | D200: 2.40 | E200: 3.50 | F200: 15.20 | G200: 101.20
A201: 2 | B201: ЧАЙ ЧЕРНЫЙ С САХАРОМ | C201: 200/15 | D201: 0.00 | E201: 0.00 | F201: 6.78 | G201: 27.09
A202: 3 | B202: ХЛЕБ ПШЕНИЧНЫЙ, РЖАНОЙ | C202: 20 | D202: 3.61 | E202: 0.37 | F202: 23.53 | G202: 111.84
B203: Итого за прием пищи: | C203: 353 | D203: =SUM(D200:D202) -> 6.01 | E203: 3.87 | F203: 45.51 | G203: 240.13
B205: Родительский взнос
A206: № | B206: Наименование блюд | C206: Выход | D206: Белки | E206: Жиры | F206: Углеводы | G206: Ккал. | H206: №/реп.
A207: 1 | B207: ОВОЩИ НАТУРАЛЬНЫЕ СОЛЕНЫЕ (ОГУРЕЦ) | C207: 30 | D207: 0.24 | E207: 0.03 | F207: 0.51 | G207: 3.90
A208: 2 | B208: ПЛОВ ИЗ ПТИЦЫ ( ГРУДКА КУРИНАЯ) | C208: 150/40 | D208: 12.11 | E208: 16.51 | F208: 39.51 | G208: 355.38
A209: 3 | B209: ЧАЙ ЧЕРНЫЙ С САХАРОМ | C209: 200/15 | D209: 0.00 | E209: 0.00 | F209: 14.52 | G209: 58.05
A210: 4 | B210: ХЛЕБ ПШЕНИЧНЫЙ, РЖАНОЙ | C210: 20/20 | D210: 3.05 | E210: 0.25 | F210: 20.07 | G210: 94.73
A211: 5
B212: Итого за прием пищи: | C212: 460 | D212: =SUM(D207:D211) -> 15.4 | E212: 16.79 | F212: 74.61 | G212: 512.06
B214: Льготники
A215: № | B215: Наименование блюд | C215: Выход | D215: Белки | E215: Жиры | F215: Углеводы | G215: Ккал. | H215: №/реп.
A216: 1 | B216: ОВОЩИ НАТУРАЛЬНЫЕ СОЛЕНЫЕ (ОГУРЕЦ) | C216: 30 | D216: 0.24 | E216: 0.03 | F216: 0.51 | G216: 3.90
A217: 2 | B217: ПЛОВ ИЗ ПТИЦЫ ( ГРУДКА КУРИНАЯ) | C217: 150/40 | D217: 12.11 | E217: 16.51 | F217: 39.51 | G217: 355.38
A218: 3 | B218: ЧАЙ ЧЕРНЫЙ С САХАРОМ | C218: 200/15 | D218: 0.00 | E218: 0.00 | F218: 14.52 | G218: 58.05
A219: 4 | B219: ХЛЕБ ПШЕНИЧНЫЙ, РЖАНОЙ | C219: 20/20 | D219: 3.05 | E219: 0.25 | F219: 20.07 | G219: 94.73
A220: 5
B221: Итого за прием пищи: | C221: 460 | D221: =SUM(D216:D220) -> 15.4 | E221: 16.79 | F221: 74.61 | G221: 512.06
B223: ОВЗ
A224: № | B224: Наименование блюд | C224: Выход | D224: Белки | E224: Жиры | F224: Углеводы | G224: Ккал. | H224: №/реп.
A225: 1 | B225: РАССОЛЬНИК ЛЕНИНГРАДСКИЙ С ГОВЯДИНОЙ | C225: 250/25 | D225: 9.35 | E225: 12.43 | F225: 16.43 | G225: 215.11
A226: 2 | B226: ЧАЙ С САХАРОМ ЛИМОНОМ | C226: 185/15/7 | D226: 0.09 | E226: 0.01 | F226: 14.81 | G226: 61.35
... 284 more rows

Sheet Лист1
